Workbook

Sheet Foglio1
A1: Data | B1: Codice | C1: Regione | D1: Ricoverati | E1: Terap. Intens. | F1: Ospedalizzati | G1: Quarantena | H1: Positivi | I1: + Positivi | J1: Nuovi | K1: Guariti | L1: Deceduti | M1: Totale | N1: Tamponi | Q1: x 2 | S1: + Positivi | T1: + Nuovi | U1: + Guariti | V1: + Deceduti | W1: + Totali | X1: + Tamponi | Y1: % Positivi | Z1: % Guariti | AA1: % Deceduti | AB1: P. Stimati
A2: 2020-02-24T18:00:00 | B2: 1 | C2: Piemonte | D2: 2 | E2: 0 | F2: 2 | G2: 1 | H2: 3 | J2: 3 | K2: 0 | L2: 0 | M2: 3 | N2: 141 | O2: =M2 -> 3 | Q2: =M2 -> 3 | Y2: =IF(M2=0,0,H2/M2) -> 1 | Z2: =IF(M2=0,0,K2/M2) -> 0 | AA2: =IF(M2=0,0,L2/M2) -> 0 | AB2: =L2*100/B$1138 -> 0
A3: 2020-02-25T18:00:00 | B3: 1 | C3: Piemonte | D3: 2 | E3: 0 | F3: 2 | G3: 1 | H3: 3 | J3: 0 | K3: 0 | L3: 0 | M3: 3 | N3: 141 | O3: =IF(P3="x2",M3,O2) -> 3 | P3: =IF(M3>O2*2,"x2",O2) -> 3 | Q3: =IF(P3="x2",M3,"") ->  | S3: =IF(H3-H2=0,"",H3-H2) ->  | T3: =IF(J3-J2=0,"",J3-J2) -> -3 | U3: =IF(K3-K2=0,"",K3-K2) ->  | V3: =IF(L3-L2=0,"",L3-L2) ->  | W3: =IF(M3-M2=0,"",M3-M2) ->  | X3: =IF(N3-N2=0,"",N3-N2) ->  | Y3: 1 | Z3: 0 | AA3: 0 | AB3: 0
A4: 2020-02-26T18:00:00 | B4: 1 | C4: Piemonte | D4: 2 | E4: 0 | F4: 2 | G4: 1 | H4: 3 | J4: 0 | K4: 0 | L4: 0 | M4: 3 | N4: 156 | O4: 3 | P4: 3 | X4: 15 | Y4: 1 | Z4: 0 | AA4: 0 | AB4: 0
A5: 2020-02-27T18:00:00 | B5: 1 | C5: Piemonte | D5: 2 | E5: 0 | F5: 2 | G5: 0 | H5: 2 | J5: -1 | K5: 0 | L5: 0 | M5: 2 | N5: 156 | O5: 3 | P5: 3 | S5: -1 | T5: -1 | W5: -1 | Y5: 1 | Z5: 0 | AA5: 0 | AB5: 0
A6: 2020-02-28T18:00:00 | B6: 1 | C6: Piemonte | D6: 7 | E6: 0 | F6: 7 | G6: 4 | H6: 11 | J6: 9 | K6: 0 | L6: 0 | M6: 11 | N6: 227 | O6: 11 | P6: x2 | Q6: 11 | S6: 9 | T6: 10 | W6: 9 | X6: 71 | Y6: 1 | Z6: 0 | AA6: 0 | AB6: 0
A7: 2020-02-29T17:00:00 | B7: 1 | C7: Piemonte | D7: 7 | E7: 0 | F7: 7 | G7: 4 | H7: 11 | J7: 0 | K7: 0 | L7: 0 | M7: 11 | N7: 308 | O7: 11 | P7: 11 | T7: -9 | X7: 81 | Y7: 1 | Z7: 0 | AA7: 0 | AB7: 0
A8: 2020-03-01T17:00:00 | B8: 1 | C8: Piemonte | D8: 11 | E8: 2 | F8: 13 | G8: 36 | H8: 49 | J8: 38 | K8: 0 | L8: 0 | M8: 49 | N8: 362 | O8: 49 | P8: x2 | Q8: 49 | S8: 38 | T8: 38 | W8: 38 | X8: 54 | Y8: 1 | Z8: 0 | AA8: 0 | AB8: 0
A9: 2020-03-02T18:00:00 | B9: 1 | C9: Piemonte | D9: 12 | E9: 2 | F9: 14 | G9: 37 | H9: 51 | J9: 2 | K9: 0 | L9: 0 | M9: 51 | N9: 434 | O9: 49 | P9: 49 | S9: 2 | T9: -36 | W9: 2 | X9: 72 | Y9: 1 | Z9: 0 | AA9: 0 | AB9: 0
A10: 2020-03-03T18:00:00 | B10: 1 | C10: Piemonte | D10: 13 | E10: 3 | F10: 16 | G10: 40 | H10: 56 | J10: 5 | K10: 0 | L10: 0 | M10: 56 | N10: 458 | O10: 49 | P10: 49 | S10: 5 | T10: 3 | W10: 5 | X10: 24 | Y10: 1 | Z10: 0 | AA10: 0 | AB10: 0
A11: 2020-03-04T17:00:00 | B11: 1 | C11: Piemonte | D11: 26 | E11: 13 | F11: 39 | G11: 43 | H11: 82 | J11: 26 | K11: 0 | L11: 0 | M11: 82 | N11: 543 | O11: 49 | P11: 49 | S11: 26 | T11: 21 | W11: 26 | X11: 85 | Y11: 1 | Z11: 0 | AA11: 0 | AB11: 0
A12: 2020-03-05T17:00:00 | B12: 1 | C12: Piemonte | D12: 43 | E12: 17 | F12: 60 | G12: 46 | H12: 106 | J12: 24 | K12: 0 | L12: 2 | M12: 108 | N12: 543 | O12: 108 | P12: x2 | Q12: 108 | S12: 24 | T12: -2 | V12: 2 | W12: 26 | Y12: 0.9814814815 | Z12: 0 | AA12: 0.01851851852 | AB12: 70.67137809
A13: 2020-03-06T17:00:00 | B13: 1 | C13: Piemonte | D13: 57 | E13: 30 | F13: 87 | G13: 52 | H13: 139 | J13: 33 | K13: 0 | L13: 4 | M13: 143 | N13: 793 | O13: 108 | P13: 108 | S13: 33 | T13: 9 | V13: 2 | W13: 35 | X13: 250 | Y13: 0.972027972 | Z13: 0 | AA13: 0.02797202797 | AB13: 141.3427562
A14: 2020-03-07T18:00:00 | B14: 1 | C14: Piemonte | D14: 110 | E14: 38 | F14: 148 | G14: 54 | H14: 202 | J14: 63 | K14: 0 | L14: 5 | M14: 207 | N14: 1046 | O14: 108 | P14: 108 | S14: 63 | T14: 30 | V14: 1 | W14: 64 | X14: 253 | Y14: 0.9758454106 | Z14: 0 | AA14: 0.02415458937 | AB14: 176.6784452
A15: 2020-03-08T18:00:00 | B15: 1 | C15: Piemonte | D15: 245 | E15: 45 | F15: 290 | G15: 65 | H15: 355 | J15: 153 | K15: 0 | L15: 5 | M15: 360 | N15: 1636 | O15: 360 | P15: x2 | Q15: 360 | S15: 153 | T15: 90 | W15: 153 | X15: 590 | Y15: 0.9861111111 | Z15: 0 | AA15: 0.01388888889 | AB15: 176.6784452
A16: 2020-03-09T18:00:00 | B16: 1 | C16: Piemonte | D16: 222 | E16: 50 | F16: 272 | G16: 65 | H16: 337 | J16: -18 | K16: 0 | L16: 13 | M16: 350 | N16: 1681 | O16: 360 | P16: 360 | S16: -18 | T16: -171 | V16: 8 | W16: -10 | X16: 45 | Y16: 0.9628571429 | Z16: 0 | AA16: 0.03714285714 | AB16: 459.3639576
A17: 2020-03-10T18:00:00 | B17: 1 | C17: Piemonte | D17: 306 | E17: 66 | F17: 372 | G17: 64 | H17: 436 | J17: 99 | K17: 0 | L17: 17 | M17: 453 | N17: 2374 | O17: 360 | P17: 360 | S17: 99 | T17: 117 | V17: 4 | W17: 103 | X17: 693 | Y17: 0.9624724062 | Z17: 0 | AA17: 0.03752759382 | AB17: 600.7067138
A18: 2020-03-11T17:00:00 | B18: 1 | C18: Piemonte | D18: 319 | E18: 75 | F18: 394 | G18: 86 | H18: 480 | J18: 44 | K18: 0 | L18: 21 | M18: 501 | N18: 2431 | O18: 360 | P18: 360 | S18: 44 | T18: -55 | V18: 4 | W18: 48 | X18: 57 | Y18: 0.9580838323 | Z18: 0 | AA18: 0.04191616766 | AB18: 742.04947
A19: 2020-03-12T17:00:00 | B19: 1 | C19: Piemonte | D19: 368 | E19: 97 | F19: 465 | G19: 89 | H19: 554 | J19: 74 | K19: 0 | L19: 26 | M19: 580 | N19: 2879 | O19: 360 | P19: 360 | S19: 74 | T19: 30 | V19: 5 | W19: 79 | X19: 448 | Y19: 0.9551724138 | Z19: 0 | AA19: 0.04482758621 | AB19: 918.7279152
A20: 2020-03-13T17:00:00 | B20: 1 | C20: Piemonte | D20: 556 | E20: 135 | F20: 691 | G20: 103 | H20: 794 | J20: 240 | K20: 0 | L20: 46 | M20: 840 | N20: 3105 | O20: 840 | P20: x2 | Q20: 840 | S20: 240 | T20: 166 | V20: 20 | W20: 260 | X20: 226 | Y20: 0.9452380952 | Z20: 0 | AA20: 0.05476190476 | AB20: 1625.441696
A21: 2020-03-14T17:00:00 | B21: 1 | C21: Piemonte | D21: 538 | E21: 150 | F21: 688 | G21: 126 | H21: 814 | J21: 20 | K21: 0 | L21: 59 | M21: 873 | N21: 3680 | O21: 840 | P21: 840 | S21: 20 | T21: -220 | V21: 13 | W21: 33 | X21: 575 | Y21: 0.932416953 | Z21: 0 | AA21: 0.06758304696 | AB21: 2084.805654
A22: 2020-03-15T17:00:00 | B22: 1 | C22: Piemonte | D22: 726 | E22: 171 | F22: 897 | G22: 133 | H22: 1030 | J22: 216 | K22: 0 | L22: 81 | M22: 1111 | N22: 4375 | O22: 840 | P22: 840 | S22: 216 | T22: 196 | V22: 22 | W22: 238 | X22: 695 | Y22: 0.9270927093 | Z22: 0 | AA22: 0.07290729073 | AB22: 2862.190813
A23: 2020-03-16T17:00:00 | B23: 1 | C23: Piemonte | D23: 1045 | E23: 186 | F23: 1231 | G23: 174 | H23: 1405 | J23: 375 | K23: 0 | L23: 111 | M23: 1516 | N23: 5588 | O23: 840 | P23: 840 | S23: 375 | T23: 159 | V23: 30 | W23: 405 | X23: 1213 | Y23: 0.9267810026 | Z23: 0 | AA23: 0.07321899736 | AB23: 3922.261484
A24: 2020-03-17T17:00:00 | B24: 1 | C24: Piemonte | D24: 1378 | E24: 206 | F24: 1584 | G24: 180 | H24: 1764 | J24: 359 | K24: 0 | L24: 133 | M24: 1897 | N24: 6543 | O24: 1897 | P24: x2 | Q24: 1897 | S24: 359 | T24: -16 | V24: 22 | W24: 381 | X24: 955 | Y24: 0.9298892989 | Z24: 0 | AA24: 0.07011070111 | AB24: 4699.646643
A25: 2020-03-18T17:00:00 | B25: 1 | C25: Piemonte | D25: 1780 | E25: 227 | F25: 2007 | G25: 180 | H25: 2187 | J25: 423 | K25: 0 | L25: 154 | M25: 2341 | N25: 7516 | O25: 1897 | P25: 1897 | S25: 423 | T25: 64 | V25: 21 | W25: 444 | X25: 973 | Y25: 0.9342161469 | Z25: 0 | AA25: 0.06578385305 | AB25: 5441.696113
A26: 2020-03-19T17:00:00 | B26: 1 | C26: Piemonte | D26: 2279 | E26: 257 | F26: 2536 | G26: 218 | H26: 2754 | J26: 567 | K26: 3 | L26: 175 | M26: 2932 | N26: 8853 | O26: 1897 | P26: 1897 | S26: 567 | T26: 144 | U26: 3 | V26: 21 | W26: 591 | X26: 1337 | Y26: 0.9392905866 | Z26: 0.00102319236 | AA26: 0.05968622101 | AB26: 6183.745583
A27: 2020-03-20T17:00:00 | B27: 1 | C27: Piemonte | D27: 1541 | E27: 280 | F27: 1821 | G27: 1423 | H27: 3244 | J27: 490 | K27: 8 | L27: 209 | M27: 3461 | N27: 9975 | O27: 1897 | P27: 1897 | S27: 490 | T27: -77 | U27: 5 | V27: 34 | W27: 529 | X27: =IF(N27-N26=0,"",N27-N26) -> 1122 | Y27: 0.937301358 | Z27: 0.002311470673 | AA27: 0.06038717134 | AB27: 7385.159011
A28: 2020-03-21T17:00:00 | B28: 1 | C28: Piemonte | D28: 1976 | E28: 301 | F28: 2277 | G28: 1229 | H28: 3506 | J28: 262 | K28: 8 | L28: 238 | M28: 3752 | N28: 10701 | O28: 1897 | P28: 1897 | S28: 262 | T28: -228 | V28: 29 | W28: =IF(M28-M27=0,"",M28-M27) -> 291 | X28: 726 | Y28: 0.934434968 | Z28: 0.002132196162 | AA28: 0.06343283582 | AB28: 8409.893993
A29: 2020-03-22T17:00:00 | B29: 1 | C29: Piemonte | D29: 2118 | E29: 308 | F29: 2426 | G29: 1701 | H29: 4127 | J29: 621 | K29: 10 | L29: 283 | M29: 4420 | N29: 12701 | O29: 4420 | P29: x2 | Q29: 4420 | S29: 621 | T29: 359 | U29: 2 | V29: 45 | W29: 668 | X29: 2000 | Y29: 0.9337104072 | Z29: 0.002262443439 | AA29: 0.06402714932 | AB29: 10000
A30: 2020-03-23T17:00:00 | B30: 1 | C30: Piemonte | D30: 2194 | E30: 343 | F30: 2537 | G30: 1992 | H30: 4529 | J30: 402 | K30: 17 | L30: 315 | M30: 4861 | N30: 13560 | O30: 4420 | P30: 4420 | S30: 402 | T30: -219 | U30: 7 | V30: 32 | W30: 441 | X30: 859 | Y30: 0.931701296 | Z30: 0.003497222794 | AA30: 0.06480148118 | AB30: 11130.74205
A31: 2020-03-24T17:00:00 | B31: 1 | C31: Piemonte | D31: 2404 | E31: 360 | F31: 2764 | G31: 2360 | H31: 5124 | J31: 595 | K31: 17 | L31: 374 | M31: 5515 | N31: 15469 | O31: 4420 | P31: 4420 | S31: 595 | T31: 193 | V31: 59 | W31: 654 | X31: 1909 | Y31: 0.9291024479 | Z31: 0.003082502267 | AA31: 0.06781504986 | AB31: 13215.5477
A32: 2020-03-25T17:00:00 | B32: 1 | C32: Piemonte | D32: 2544 | E32: 381 | F32: 2925 | G32: 2631 | H32: 5556 | J32: 432 | K32: 19 | L32: 449 | M32: 6024 | N32: 16655 | O32: 4420 | P32: 4420 | S32: 432 | T32: -163 | U32: 2 | V32: 75 | W32: 509 | X32: 1186 | Y32: 0.922310757 | Z32: 0.003154050465 | AA32: 0.07453519256 | AB32: 15865.72438
A33: 2020-03-26T17:00:00 | B33: 1 | C33: Piemonte | D33: 2633 | E33: 408 | F33: 3041 | G33: 2909 | H33: 5950 | J33: 394 | K33: 135 | L33: 449 | M33: 6534 | N33: 18054 | O33: 4420 | P33: 4420 | S33: 394 | T33: -38 | U33: 116 | W33: 510 | X33: =IF(N33-N32=0,"",N33-N32) -> 1399 | Y33: 0.9106213652 | Z33: 0.02066115702 | AA33: 0.06871747781 | AB33: 15865.72438
A34: 2020-03-27T17:00:00 | B34: 1 | C34: Piemonte | D34: 2852 | E34: 431 | F34: 3283 | G34: 3064 | H34: 6347 | I34: 397 | J34: 558 | K34: 176 | L34: 569 | M34: 7092 | N34: 19705 | O34: 4420 | P34: =IF(M34>O33*2,"x2",O33) -> 4420 | Q34: =IF(P34="x2",M34,"") ->  | S34: =IF(H34-H33=0,"",H34-H33) -> 397 | T34: =IF(J34-J33=0,"",J34-J33) -> 164 | U34: 41 | V34: 120 | W34: 558 | X34: 1651 | Y34: 0.8949520587 | Z34: 0.02481669487 | AA34: 0.08023124647 | AB34: 20106.00707
A35: 2020-03-28T17:00:00 | B35: 1 | C35: Piemonte | D35: 3094 | E35: 439 | F35: 3533 | G35: 3318 | H35: 6851 | I35: 504 | J35: 579 | K35: 203 | L35: 617 | M35: 7671 | N35: 21511 | O35: =IF(P35="x2",M35,O34) -> 4420 | P35: 4420 | S35: 504 | T35: 21 | U35: 27 | V35: 48 | W35: 579 | X35: 1806 | Y35: 0.8931038978 | Z35: 0.02646330335 | AA35: 0.08043279885 | AB35: 21802.12014
A36: 2020-03-29T17:00:00 | B36: 1 | C36: Piemonte | D36: 2985 | E36: 443 | F36: 3428 | G36: 3840 | H36: 7268 | I36: 417 | J36: 535 | K36: 254 | L36: 684 | M36: 8206 | N36: 24058 | O36: 4420 | P36: 4420 | S36: 417 | T36: -44 | U36: 51 | V36: 67 | W36: 535 | X36: 2547 | Y36: 0.8856933951 | Z36: 0.03095296125 | AA36: 0.08335364368 | AB36: 24169.61131
A37: 2020-03-30T17:00:00 | B37: 1 | C37: Piemonte | D37: 2985 | E37: 452 | F37: 3437 | G37: 4218 | H37: 7655 | I37: 387 | J37: 506 | K37: 308 | L37: 749 | M37: 8712 | N37: 25478 | O37: 4420 | P37: 4420 | S37: 387 | T37: -29 | U37: 54 | V37: 65 | W37: 506 | X37: 1420 | Y37: 0.8786730946 | Z37: 0.03535353535 | AA37: 0.08597337006 | AB37: 26466.4311
A38: 2020-03-31T17:00:00 | B38: 1 | C38: Piemonte | D38: 3174 | E38: 452 | F38: 3626 | G38: 4456 | H38: 8082 | I38: 427 | J38: 589 | K38: 365 | L38: 854 | M38: 9301 | N38: 27658 | O38: 9301 | P38: x2 | Q38: 9301 | S38: 427 | T38: 83 | U38: 57 | V38: 105 | W38: 589 | X38: 2180 | Y38: 0.8689388238 | Z38: 0.03924309214 | AA38: 0.09181808408 | AB38: 30176.67845
A39: 2020-04-01T17:00:00 | B39: 1 | C39: Piemonte | D39: 3146 | E39: 453 | F39: 3599 | G39: 4871 | H39: 8470 | I39: 388 | J39: 494 | K39: 439 | L39: 886 | M39: 9795 | N39: 30060 | O39: 9301 | P39: 9301 | S39: 388 | T39: -95 | U39: 74 | V39: 32 | W39: 494 | X39: =IF(N39-N38=0,"",N39-N38) -> 2402 | Y39: =IF(M39=0,0,H39/M39) -> 0.8647269015 | Z39: =IF(M39=0,0,K39/M39) -> 0.04481878509 | AA39: =IF(M39=0,0,L39/M39) -> 0.09045431343 | AB39: 31307.42049
A40: 2020-04-02T17:00:00 | B40: 1 | C40: Piemonte | D40: 3341 | E40: 453 | F40: 3794 | G40: 5005 | H40: 8799 | I40: 329 | J40: 558 | K40: 571 | L40: 983 | M40: 10353 | N40: 32100 | O40: 9301 | P40: =IF(M40>O39*2,"x2",O39) -> 9301 | Q40: =IF(P40="x2",M40,"") ->  | S40: =IF(H40-H39=0,"",H40-H39) -> 329 | T40: =IF(J40-J39=0,"",J40-J39) -> 64 | U40: =IF(K40-K39=0,"",K40-K39) -> 132 | V40: =IF(L40-L39=0,"",L40-L39) -> 97 | W40: =IF(M40-M39=0,"",M40-M39) -> 558 | X40: 2040 | Y40: 0.8498985801 | Z40: 0.05515309572 | AA40: 0.09494832416 | AB40: 34734.98233
A41: 2020-04-03T17:00:00 | B41: 1 | C41: Piemonte | D41: 3300 | E41: 452 | F41: 3752 | G41: 5378 | H41: 9130 | I41: 331 | J41: 543 | K41: 723 | L41: 1043 | M41: 10896 | N41: 34281 | O41: =IF(P41="x2",M41,O40) -> 9301 | P41: =IF(M41>O40*2,"x2",O40) -> 9301 | Q41: =IF(P41="x2",M41,"") ->  | S41: =IF(H41-H40=0,"",H41-H40) -> 331 | T41: =IF(J41-J40=0,"",J41-J40) -> -15 | U41: =IF(K41-K40=0,"",K41-K40) -> 152 | V41: =IF(L41-L40=0,"",L41-L40) -> 60 | W41: =IF(M41-M40=0,"",M41-M40) -> 543 | X41: 2181 | Y41: 0.8379221733 | Z41: 0.06635462555 | AA41: 0.09572320117 | AB41: 36855.12367
A42: 2020-04-04T17:00:00 | B42: 1 | C42: Piemonte | D42: 3441 | E42: 450 | F42: 3891 | G42: 5802 | H42: 9693 | I42: 563 | J42: 813 | K42: 888 | L42: 1128 | M42: 11709 | N42: 37181 | O42: =IF(P42="x2",M42,O41) -> 9301 | P42: =IF(M42>O41*2,"x2",O41) -> 9301 | Q42: =IF(P42="x2",M42,"") ->  | S42: =IF(H42-H41=0,"",H42-H41) -> 563 | T42: =IF(J42-J41=0,"",J42-J41) -> 270 | U42: =IF(K42-K41=0,"",K42-K41) -> 165 | V42: =IF(L42-L41=0,"",L42-L41) -> 85 | W42: =IF(M42-M41=0,"",M42-M41) -> 813 | X42: 2900 | Y42: 0.8278247502 | Z42: 0.07583909813 | AA42: 0.09633615168 | AB42: 39858.65724
A43: 2020-04-05T17:00:00 | B43: 1 | C43: Piemonte | D43: 3472 | E43: 444 | F43: 3916 | G43: 6261 | H43: 10177 | I43: 484 | J43: 653 | K43: 1017 | L43: 1168 | M43: 12362 | N43: 38539 | O43: =IF(P43="x2",M43,O42) -> 9301 | P43: =IF(M43>O42*2,"x2",O42) -> 9301 | Q43: =IF(P43="x2",M43,"") ->  | S43: =IF(H43-H42=0,"",H43-H42) -> 484 | T43: =IF(J43-J42=0,"",J43-J42) -> -160 | U43: =IF(K43-K42=0,"",K43-K42) -> 129 | V43: =IF(L43-L42=0,"",L43-L42) -> 40 | W43: =IF(M43-M42=0,"",M43-M42) -> 653 | X43: 1358 | Y43: 0.8232486653 | Z43: 0.08226824138 | AA43: 0.09448309335 | AB43: 41272.08481
A44: 2020-04-06T17:00:00 | B44: 1 | C44: Piemonte | D44: 3484 | E44: 438 | F44: 3922 | G44: 6623 | H44: 10545 | I44: 368 | J44: 562 | K44: 1128 | L44: 1251 | M44: 12924 | N44: 41123 | O44: =IF(P44="x2",M44,O43) -> 9301 | P44: =IF(M44>O43*2,"x2",O43) -> 9301 | Q44: =IF(P44="x2",M44,"") ->  | S44: =IF(H44-H43=0,"",H44-H43) -> 368 | T44: =IF(J44-J43=0,"",J44-J43) -> -91 | U44: =IF(K44-K43=0,"",K44-K43) -> 111 | V44: =IF(L44-L43=0,"",L44-L43) -> 83 | W44: =IF(M44-M43=0,"",M44-M43) -> 562 | X44: 2584 | Y44: 0.8159238626 | Z44: 0.08727948004 | AA44: 0.09679665738 | AB44: 44204.947
A45: 2020-04-07T17:00:00 | B45: 1 | C45: Piemonte | D45: 3553 | E45: 432 | F45: 3985 | G45: 6719 | H45: 10704 | I45: 159 | J45: 419 | K45: 1320 | L45: 1319 | M45: 13343 | N45: 44121 | O45: =IF(P45="x2",M45,O44) -> 9301 | P45: =IF(M45>O44*2,"x2",O44) -> 9301 | Q45: =IF(P45="x2",M45,"") ->  | S45: =IF(H45-H44=0,"",H45-H44) -> 159 | T45: =IF(J45-J44=0,"",J45-J44) -> -143 | U45: =IF(K45-K44=0,"",K45-K44) -> 192 | V45: =IF(L45-L44=0,"",L45-L44) -> 68 | W45: =IF(M45-M44=0,"",M45-M44) -> 419 | X45: =IF(N45-N44=0,"",N45-N44) -> 2998 | Y45: =IF(M45=0,0,H45/M45) -> 0.8022183917 | Z45: =IF(M45=0,0,K45/M45) -> 0.098928277 | AA45: =IF(M45=0,0,L45/M45) -> 0.09885333133 | AB45: =L45*100/B$1138 -> 46607.77385
A46: 2020-04-08T17:00:00 | B46: 1 | C46: Piemonte | D46: 3493 | E46: 423 | F46: 3916 | G46: 7073 | H46: 10989 | I46: 285 | J46: 540 | K46: 1516 | L46: 1378 | M46: 13883 | N46: 48495 | O46: =IF(P46="x2",M46,O45) -> 9301 | P46: =IF(M46>O45*2,"x2",O45) -> 9301 | Q46: =IF(P46="x2",M46,"") ->  | S46: =IF(H46-H45=0,"",H46-H45) -> 285 | T46: =IF(J46-J45=0,"",J46-J45) -> 121 | U46: =IF(K46-K45=0,"",K46-K45) -> 196 | V46: =IF(L46-L45=0,"",L46-L45) -> 59 | W46: =IF(M46-M45=0,"",M46-M45) -> 540 | X46: =IF(N46-N45=0,"",N46-N45) -> 4374 | Y46: =IF(M46=0,0,H46/M46) -> 0.7915436145 | Z46: =IF(M46=0,0,K46/M46) -> 0.1091983001 | AA46: =IF(M46=0,0,L46/M46) -> 0.09925808543 | AB46: =L46*100/B$1138 -> 48692.57951
A47: =A46+1 -> 2020-04-09T17:00:00 | P47: Media x2 | Q47: =COUNT(M2:M46)/COUNT(Q2:Q46) -> 5
A48: =A47+1 -> 2020-04-10T17:00:00
A49: =A48+1 -> 2020-04-11T17:00:00
E50: =E46/$M46 -> 0.03046891882 | H50: =H46/$M46 -> 0.7915436145 | K50: =K46/$M46 -> 0.1091983001 | L50: =L46/$M46 -> 0.09925808543 | N50: =N46/$M46 -> 3.493121083
A54: Data | B54: Codice | C54: Regione | D54: Ricoverati | E54: Terap. Intens. | F54: Ospedalizzati | G54: Quarantena | H54: Positivi | I54: + Positivi | J54: Nuovi | K54: Guariti | L54: Deceduti | M54: Totale | N54: Tamponi | Q54: x 2 | S54: + Positivi | T54: + Nuovi | U54: + Guariti | V54: + Deceduti | W54: + Totali | X54: + Tamponi | Y54: % Positivi | Z54: % Guariti | AA54: % Deceduti | AB54: P. Stimati
A55: 2020-02-24T18:00:00 | B55: 2 | C55: Valle d'Aosta | D55: 0 | E55: 0 | F55: 0 | G55: 0 | H55: 0 | J55: 0 | K55: 0 | L55: 0 | M55: 0 | N55: 7 | O55: =M55 -> 0 | Q55: =M55 -> 0 | Y55: =IF(M55=0,0,H55/M55) -> 0 | Z55: =IF(M55=0,0,K55/M55) -> 0 | AA55: =IF(M55=0,0,L55/M55) -> 0 | AB55: =L55*100/B$1138 -> 0
A56: 2020-02-25T18:00:00 | B56: 2 | C56: Valle d'Aosta | D56: 0 | E56: 0 | F56: 0 | G56: 0 | H56: 0 | J56: 0 | K56: 0 | L56: 0 | M56: 0 | N56: 7 | O56: =IF(P56="x2",M56,O55) -> 0 | P56: =IF(M56>O55*2,"x2",O55) -> 0 | Q56: =IF(P56="x2",M56,"") ->  | S56: =IF(H56-H55=0,"",H56-H55) ->  | T56: =IF(J56-J55=0,"",J56-J55) ->  | U56: =IF(K56-K55=0,"",K56-K55) ->  | V56: =IF(L56-L55=0,"",L56-L55) ->  | W56: =IF(M56-M55=0,"",M56-M55) ->  | X56: =IF(N56-N55=0,"",N56-N55) ->  | Y56: =IF(M56=0,0,H56/M56) -> 0 | Z56: =IF(M56=0,0,K56/M56) -> 0 | AA56: =IF(M56=0,0,L56/M56) -> 0 | AB56: 0
A57: 2020-02-26T18:00:00 | B57: 2 | C57: Valle d'Aosta | D57: 0 | E57: 0 | F57: 0 | G57: 0 | H57: 0 | J57: 0 | K57: 0 | L57: 0 | M57: 0 | N57: 7 | O57: 0 | P57: 0 | Y57: 0 | Z57: 0 | AA57: 0 | AB57: 0
A58: 2020-02-27T18:00:00 | B58: 2 | C58: Valle d'Aosta | D58: 0 | E58: 0 | F58: 0 | G58: 0 | H58: 0 | J58: 0 | K58: 0 | L58: 0 | M58: 0 | N58: 9 | O58: 0 | P58: 0 | X58: 2 | Y58: 0 | Z58: 0 | AA58: 0 | AB58: 0
A59: 2020-02-28T18:00:00 | B59: 2 | C59: Valle d'Aosta | D59: 0 | E59: 0 | F59: 0 | G59: 0 | H59: 0 | J59: 0 | K59: 0 | L59: 0 | M59: 0 | N59: 9 | O59: 0 | P59: 0 | Y59: 0 | Z59: 0 | AA59: 0 | AB59: 0
A60: 2020-02-29T17:00:00 | B60: 2 | C60: Valle d'Aosta | D60: 0 | E60: 0 | F60: 0 | G60: 0 | H60: 0 | J60: 0 | K60: 0 | L60: 0 | M60: 0 | N60: 9 | O60: 0 | P60: 0 | Y60: 0 | Z60: 0 | AA60: 0 | AB60: 0
A61: 2020-03-01T17:00:00 | B61: 2 | C61: Valle d'Aosta | D61: 0 | E61: 0 | F61: 0 | G61: 0 | H61: 0 | J61: 0 | K61: 0 | L61: 0 | M61: 0 | N61: 10 | O61: 0 | P61: 0 | X61: 1 | Y61: 0 | Z61: 0 | AA61: 0 | AB61: 0
A62: 2020-03-02T18:00:00 | B62: 2 | C62: Valle d'Aosta | D62: 0 | E62: 0 | F62: 0 | G62: 0 | H62: 0 | J62: 0 | K62: 0 | L62: 0 | M62: 0 | N62: 11 | O62: 0 | P62: 0 | X62: 1 | Y62: 0 | Z62: 0 | AA62: 0 | AB62: 0
A63: 2020-03-03T18:00:00 | B63: 2 | C63: Valle d'Aosta | D63: 0 | E63: 0 | F63: 0 | G63: 0 | H63: 0 | J63: 0 | K63: 0 | L63: 0 | M63: 0 | N63: 12 | O63: 0 | P63: 0 | X63: 1 | Y63: 0 | Z63: 0 | AA63: 0 | AB63: 0
A64: 2020-03-04T17:00:00 | B64: 2 | C64: Valle d'Aosta | D64: 0 | E64: 0 | F64: 0 | G64: 0 | H64: 0 | J64: 0 | K64: 0 | L64: 0 | M64: 0 | N64: 15 | O64: 0 | P64: 0 | X64: 3 | Y64: 0 | Z64: 0 | AA64: 0 | AB64: 0
A65: 2020-03-05T17:00:00 | B65: 2 | C65: Valle d'Aosta | D65: 0 | E65: 0 | F65: 0 | G65: 2 | H65: 2 | J65: 2 | K65: 0 | L65: 0 | M65: 2 | N65: 21 | O65: 2 | P65: x2 | Q65: 2 | S65: 2 | T65: 2 | W65: 2 | X65: 6 | Y65: 1 | Z65: 0 | AA65: 0 | AB65: 0
A66: 2020-03-06T17:00:00 | B66: 2 | C66: Valle d'Aosta | D66: 0 | E66: 0 | F66: 0 | G66: 7 | H66: 7 | J66: 5 | K66: 0 | L66: 0 | M66: 7 | N66: 28 | O66: 7 | P66: x2 | Q66: 7 | S66: 5 | T66: 3 | W66: 5 | X66: 7 | Y66: 1 | Z66: 0 | AA66: 0 | AB66: 0
A67: 2020-03-07T18:00:00 | B67: 2 | C67: Valle d'Aosta | D67: 1 | E67: 0 | F67: 1 | G67: 7 | H67: 8 | J67: 1 | K67: 0 | L67: 0 | M67: 8 | N67: 32 | O67: 7 | P67: 7 | S67: 1 | T67: -4 | W67: 1 | X67: 4 | Y67: 1 | Z67: 0 | AA67: 0 | AB67: 0
A68: 2020-03-08T18:00:00 | B68: 2 | C68: Valle d'Aosta | D68: 1 | E68: 0 | F68: 1 | G68: 8 | H68: 9 | J68: 1 | K68: 0 | L68: 0 | M68: 9 | N68: 41 | O68: 7 | P68: 7 | S68: 1 | W68: 1 | X68: 9 | Y68: 1 | Z68: 0 | AA68: 0 | AB68: 0
A69: 2020-03-09T18:00:00 | B69: 2 | C69: Valle d'Aosta | D69: 4 | E69: 0 | F69: 4 | G69: 11 | H69: 15 | J69: 6 | K69: 0 | L69: 0 | M69: 15 | N69: 67 | O69: 15 | P69: x2 | Q69: 15 | S69: 6 | T69: 5 | W69: 6 | X69: 26 | Y69: 1 | Z69: 0 | AA69: 0 | AB69: 0
A70: 2020-03-10T18:00:00 | B70: 2 | C70: Valle d'Aosta | D70: 2 | E70: 0 | F70: 2 | G70: 15 | H70: 17 | J70: 2 | K70: 0 | L70: 0 | M70: 17 | N70: 89 | O70: 15 | P70: 15 | S70: 2 | T70: -4 | W70: 2 | X70: 22 | Y70: 1 | Z70: 0 | AA70: 0 | AB70: 0
A71: 2020-03-11T17:00:00 | B71: 2 | C71: Valle d'Aosta | D71: 2 | E71: 0 | F71: 2 | G71: 17 | H71: 19 | J71: 2 | K71: 0 | L71: 1 | M71: 20 | N71: 99 | O71: 15 | P71: 15 | S71: 2 | V71: 1 | W71: 3 | X71: 10 | Y71: 0.95 | Z71: 0 | AA71: 0.05 | AB71: 35.33568905
A72: 2020-03-12T17:00:00 | B72: 2 | C72: Valle d'Aosta | D72: 7 | E72: 0 | F72: 7 | G72: 19 | H72: 26 | J72: 7 | K72: 0 | L72: 1 | M72: 27 | N72: 118 | O72: 15 | P72: 15 | S72: 7 | T72: 5 | W72: 7 | X72: 19 | Y72: 0.962962963 | Z72: 0 | AA72: 0.03703703704 | AB72: 35.33568905
A73: 2020-03-13T17:00:00 | B73: 2 | C73: Valle d'Aosta | D73: 6 | E73: 0 | F73: 6 | G73: 21 | H73: 27 | J73: 1 | K73: 0 | L73: 1 | M73: 28 | N73: 189 | O73: 15 | P73: 15 | S73: 1 | T73: -6 | W73: 1 | X73: 71 | Y73: 0.9642857143 | Z73: 0 | AA73: 0.03571428571 | AB73: 35.33568905
A74: 2020-03-14T17:00:00 | B74: 2 | C74: Valle d'Aosta | D74: 12 | E74: 0 | F74: 12 | G74: 29 | H74: 41 | J74: 14 | K74: 0 | L74: 1 | M74: 42 | N74: 231 | O74: 42 | P74: x2 | Q74: 42 | S74: 14 | T74: 13 | W74: 14 | X74: 42 | Y74: 0.9761904762 | Z74: 0 | AA74: 0.02380952381 | AB74: 35.33568905
A75: 2020-03-15T17:00:00 | B75: 2 | C75: Valle d'Aosta | D75: 10 | E75: 3 | F75: 13 | G75: 43 | H75: 56 | J75: 15 | K75: 0 | L75: 1 | M75: 57 | N75: 230 | O75: 42 | P75: 42 | S75: 15 | T75: 1 | W75: 15 | X75: -1 | Y75: 0.9824561404 | Z75: 0 | AA75: 0.01754385965 | AB75: 35.33568905
A76: 2020-03-16T17:00:00 | B76: 2 | C76: Valle d'Aosta | D76: 28 | E76: 5 | F76: 33 | G76: 70 | H76: 103 | J76: 47 | K76: 0 | L76: 2 | M76: 105 | N76: 287 | O76: 105 | P76: x2 | Q76: 105 | S76: 47 | T76: 32 | V76: 1 | W76: 48 | X76: 57 | Y76: 0.980952381 | Z76: 0 | AA76: 0.01904761905 | AB76: 70.67137809
A77: 2020-03-17T17:00:00 | B77: 2 | C77: Valle d'Aosta | D77: 35 | E77: 6 | F77: 41 | G77: 93 | H77: 134 | J77: 31 | K77: 0 | L77: 2 | M77: 136 | N77: 398 | O77: 105 | P77: 105 | S77: 31 | T77: -16 | W77: 31 | X77: 111 | Y77: 0.9852941176 | Z77: 0 | AA77: 0.01470588235 | AB77: 70.67137809
A78: 2020-03-18T17:00:00 | B78: 2 | C78: Valle d'Aosta | D78: 41 | E78: 3 | F78: 44 | G78: 118 | H78: 162 | J78: 28 | K78: 0 | L78: 3 | M78: 165 | N78: 486 | O78: 105 | P78: 105 | S78: 28 | T78: -3 | V78: 1 | W78: 29 | X78: 88 | Y78: 0.9818181818 | Z78: 0 | AA78: 0.01818181818 | AB78: 106.0070671
A79: 2020-03-19T17:00:00 | B79: 2 | C79: Valle d'Aosta | D79: 47 | E79: 9 | F79: 56 | G79: 153 | H79: 209 | J79: 47 | K79: 0 | L79: 6 | M79: 215 | N79: 608 | O79: 215 | P79: x2 | Q79: 215 | S79: 47 | T79: 19 | V79: 3 | W79: 50 | X79: 122 | Y79: 0.9720930233 | Z79: 0 | AA79: 0.02790697674 | AB79: 212.0141343
A80: 2020-03-20T17:00:00 | B80: 2 | C80: Valle d'Aosta | D80: 54 | E80: 9 | F80: 63 | G80: 194 | H80: 257 | J80: 48 | K80: 0 | L80: 7 | M80: 264 | N80: 814 | O80: 215 | P80: 215 | S80: 48 | T80: 1 | V80: 1 | W80: 49 | X80: =IF(N80-N79=0,"",N80-N79) -> 206 | Y80: 0.9734848485 | Z80: 0 | AA80: 0.02651515152 | AB80: 247.3498233
A81: 2020-03-21T17:00:00 | B81: 2 | C81: Valle d'Aosta | D81: 62 | E81: 15 | F81: 77 | G81: 227 | H81: 304 | J81: 47 | K81: 1 | L81: 8 | M81: 313 | N81: 884 | O81: 215 | P81: 215 | S81: 47 | T81: -1 | U81: 1 | V81: 1 | W81: =IF(M81-M80=0,"",M81-M80) -> 49 | X81: 70 | Y81: 0.9712460064 | Z81: 0.003194888179 | AA81: 0.02555910543 | AB81: 282.6855124
A82: 2020-03-22T17:00:00 | B82: 2 | C82: Valle d'Aosta | D82: 63 | E82: 21 | F82: 84 | G82: 270 | H82: 354 | J82: 50 | K82: 1 | L82: 9 | M82: 364 | N82: 950 | O82: 215 | P82: 215 | S82: 50 | T82: 3 | V82: 1 | W82: 51 | X82: 66 | Y82: 0.9725274725 | Z82: 0.002747252747 | AA82: 0.02472527473 | AB82: 318.0212014
A83: 2020-03-23T17:00:00 | B83: 2 | C83: Valle d'Aosta | D83: 69 | E83: 20 | F83: 89 | G83: 290 | H83: 379 | J83: 25 | K83: 2 | L83: 12 | M83: 393 | N83: 1098 | O83: 215 | P83: 215 | S83: 25 | T83: -25 | U83: 1 | V83: 3 | W83: 29 | X83: 148 | Y83: 0.9643765903 | Z83: 0.005089058524 | AA83: 0.03053435115 | AB83: 424.0282686
A84: 2020-03-24T17:00:00 | B84: 2 | C84: Valle d'Aosta | D84: 71 | E84: 20 | F84: 91 | G84: 288 | H84: 379 | J84: 0 | K84: 2 | L84: 19 | M84: 400 | N84: 1180 | O84: 215 | P84: 215 | T84: -25 | V84: 7 | W84: 7 | X84: 82 | Y84: 0.9475 | Z84: 0.005 | AA84: 0.0475 | AB84: 671.3780919
A85: 2020-03-25T17:00:00 | B85: 2 | C85: Valle d'Aosta | D85: 70 | E85: 25 | F85: 95 | G85: 280 | H85: 375 | J85: -4 | K85: 2 | L85: 24 | M85: 401 | N85: 1200 | O85: 215 | P85: 215 | S85: -4 | T85: -4 | V85: 5 | W85: 1 | X85: 20 | Y85: 0.9351620948 | Z85: 0.004987531172 | AA85: 0.05985037406 | AB85: 848.0565371
A86: 2020-03-26T17:00:00 | B86: 2 | C86: Valle d'Aosta | D86: 73 | E86: 24 | F86: 97 | G86: 281 | H86: 378 | J86: 3 | K86: 2 | L86: 28 | M86: 408 | N86: 1203 | O86: 215 | P86: 215 | S86: 3 | T86: 7 | V86: 4 | W86: 7 | X86: =IF(N86-N85=0,"",N86-N85) -> 3 | Y86: 0.9264705882 | Z86: 0.004901960784 | AA86: 0.06862745098 | AB86: 989.3992933
A87: 2020-03-27T17:00:00 | B87: 2 | C87: Valle d'Aosta | D87: 91 | E87: 24 | F87: 115 | G87: 298 | H87: 413 | I87: 35 | J87: 44 | K87: 2 | L87: 37 | M87: 452 | N87: 1252 | O87: =IF(P87="x2",M87,O86) -> 452 | P87: =IF(M87>O86*2,"x2",O86) -> x2 | Q87: =IF(P87="x2",M87,"") -> 452 | S87: =IF(H87-H86=0,"",H87-H86) -> 35 | T87: =IF(J87-J86=0,"",J87-J86) -> 41 | V87: 9 | W87: 44 | X87: 49 | Y87: 0.9137168142 | Z87: 0.004424778761 | AA87: 0.08185840708 | AB87: 1307.420495
A88: 2020-03-28T17:00:00 | B88: 2 | C88: Valle d'Aosta | D88: 90 | E88: 26 | F88: 116 | G88: 352 | H88: 468 | I88: 55 | J88: 59 | K88: 2 | L88: 41 | M88: 511 | N88: 1380 | O88: 452 | P88: 452 | S88: 55 | T88: 15 | V88: 4 | W88: 59 | X88: 128 | Y88: 0.915851272 | Z88: 0.003913894325 | AA88: 0.08023483366 | AB88: 1448.763251
A89: 2020-03-29T17:00:00 | B89: 2 | C89: Valle d'Aosta | D89: 90 | E89: 26 | F89: 116 | G89: 423 | H89: 539 | I89: 71 | J89: 73 | K89: 2 | L89: 43 | M89: 584 | N89: 1480 | O89: 452 | P89: 452 | S89: 71 | T89: 14 | V89: 2 | W89: 73 | X89: 100 | Y89: 0.9229452055 | Z89: 0.003424657534 | AA89: 0.07363013699 | AB89: 1519.434629
A90: 2020-03-30T17:00:00 | B90: 2 | C90: Valle d'Aosta | D90: 92 | E90: 26 | F90: 118 | G90: 400 | H90: 518 | I90: -21 | J90: 0 | K90: 16 | L90: 50 | M90: 584 | N90: 1536 | O90: 452 | P90: 452 | S90: -21 | T90: -73 | U90: 14 | V90: 7 | X90: 56 | Y90: 0.8869863014 | Z90: 0.02739726027 | AA90: 0.08561643836 | AB90: 1766.784452
A91: 2020-03-31T17:00:00 | B91: 2 | C91: Valle d'Aosta | D91: 91 | E91: 26 | F91: 117 | G91: 435 | H91: 552 | I91: 34 | J91: 44 | K91: 20 | L91: 56 | M91: 628 | N91: 1582 | O91: 452 | P91: 452 | S91: 34 | T91: 44 | U91: 4 | V91: 6 | W91: 44 | X91: 46 | Y91: 0.8789808917 | Z91: 0.03184713376 | AA91: 0.08917197452 | AB91: 1978.798587
A92: 2020-04-01T17:00:00 | B92: 2 | C92: Valle d'Aosta | D92: 85 | E92: 27 | F92: 112 | G92: 428 | H92: 540 | I92: -12 | J92: 3 | K92: 32 | L92: 59 | M92: 631 | N92: 1717 | O92: 452 | P92: 452 | S92: -12 | T92: -41 | U92: 12 | V92: 3 | W92: 3 | X92: =IF(N92-N91=0,"",N92-N91) -> 135 | Y92: =IF(M92=0,0,H92/M92) -> 0.8557844691 | Z92: =IF(M92=0,0,K92/M92) -> 0.05071315372 | AA92: =IF(M92=0,0,L92/M92) -> 0.09350237718 | AB92: 2084.805654
A93: 2020-04-02T17:00:00 | B93: 2 | C93: Valle d'Aosta | D93: 85 | E93: 25 | F93: 110 | G93: 446 | H93: 556 | I93: 16 | J93: 37 | K93: 49 | L93: 63 | M93: 668 | N93: 1934 | O93: =IF(P93="x2",M93,O92) -> 452 | P93: =IF(M93>O92*2,"x2",O92) -> 452 | Q93: =IF(P93="x2",M93,"") ->  | S93: =IF(H93-H92=0,"",H93-H92) -> 16 | T93: =IF(J93-J92=0,"",J93-J92) -> 34 | U93: =IF(K93-K92=0,"",K93-K92) -> 17 | V93: =IF(L93-L92=0,"",L93-L92) -> 4 | W93: =IF(M93-M92=0,"",M93-M92) -> 37 | X93: 217 | Y93: 0.8323353293 | Z93: 0.07335329341 | AA93: 0.09431137725 | AB93: 2226.14841
A94: 2020-04-03T17:00:00 | B94: 2 | C94: Valle d'Aosta | D94: 85 | E94: 25 | F94: 110 | G94: 450 | H94: 560 | I94: 4 | J94: 51 | K94: 89 | L94: 70 | M94: 719 | N94: 2106 | O94: =IF(P94="x2",M94,O93) -> 452 | P94: =IF(M94>O93*2,"x2",O93) -> 452 | Q94: =IF(P94="x2",M94,"") ->  | S94: =IF(H94-H93=0,"",H94-H93) -> 4 | T94: =IF(J94-J93=0,"",J94-J93) -> 14 | U94: =IF(K94-K93=0,"",K94-K93) -> 40 | V94: =IF(L94-L93=0,"",L94-L93) -> 7 | W94: =IF(M94-M93=0,"",M94-M93) -> 51 | X94: 172 | Y94: 0.7788595271 | Z94: 0.123783032 | AA94: 0.09735744089 | AB94: =L94*100/B$1138 -> 2473.498233
A95: 2020-04-04T17:00:00 | B95: 2 | C95: Valle d'Aosta | D95: 63 | E95: 23 | F95: 86 | G95: 474 | H95: 560 | I95: 0 | J95: 29 | K95: 106 | L95: 82 | M95: 748 | N95: 2274 | O95: =IF(P95="x2",M95,O94) -> 452 | P95: =IF(M95>O94*2,"x2",O94) -> 452 | Q95: =IF(P95="x2",M95,"") ->  | S95: =IF(H95-H94=0,"",H95-H94) ->  | T95: =IF(J95-J94=0,"",J95-J94) -> -22 | U95: =IF(K95-K94=0,"",K95-K94) -> 17 | V95: =IF(L95-L94=0,"",L95-L94) -> 12 | W95: =IF(M95-M94=0,"",M95-M94) -> 29 | X95: 168 | Y95: 0.7486631016 | Z95: 0.1417112299 | AA95: 0.1096256684 | AB95: =L95*100/B$1138 -> 2897.526502
A96: 2020-04-05T17:00:00 | B96: 2 | C96: Valle d'Aosta | D96: 96 | E96: 23 | F96: 119 | G96: 457 | H96: 576 | I96: 16 | J96: 34 | K96: 115 | L96: 91 | M96: 782 | N96: 2390 | O96: =IF(P96="x2",M96,O95) -> 452 | P96: =IF(M96>O95*2,"x2",O95) -> 452 | Q96: =IF(P96="x2",M96,"") ->  | S96: =IF(H96-H95=0,"",H96-H95) -> 16 | T96: =IF(J96-J95=0,"",J96-J95) -> 5 | U96: =IF(K96-K95=0,"",K96-K95) -> 9 | V96: =IF(L96-L95=0,"",L96-L95) -> 9 | W96: =IF(M96-M95=0,"",M96-M95) -> 34 | X96: 116 | Y96: 0.73657289 | Z96: 0.1470588235 | AA96: 0.1163682864 | AB96: =L96*100/B$1138 -> 3215.547703
A97: 2020-04-06T17:00:00 | B97: 2 | C97: Valle d'Aosta | D97: 109 | E97: 21 | F97: 130 | G97: 437 | H97: 567 | I97: -9 | J97: 23 | K97: 142 | L97: 96 | M97: 805 | N97: 2590 | O97: =IF(P97="x2",M97,O96) -> 452 | P97: =IF(M97>O96*2,"x2",O96) -> 452 | Q97: =IF(P97="x2",M97,"") ->  | S97: =IF(H97-H96=0,"",H97-H96) -> -9 | T97: =IF(J97-J96=0,"",J97-J96) -> -11 | U97: =IF(K97-K96=0,"",K97-K96) -> 27 | V97: =IF(L97-L96=0,"",L97-L96) -> 5 | W97: =IF(M97-M96=0,"",M97-M96) -> 23 | X97: 200 | Y97: 0.7043478261 | Z97: 0.1763975155 | AA97: 0.1192546584 | AB97: =L97*100/B$1138 -> 3392.226148
A98: 2020-04-07T17:00:00 | B98: 2 | C98: Valle d'Aosta | D98: 118 | E98: 17 | F98: 135 | G98: 458 | H98: 593 | I98: 26 | J98: 30 | K98: 142 | L98: 100 | M98: 835 | N98: 2754 | O98: =IF(P98="x2",M98,O97) -> 452 | P98: =IF(M98>O97*2,"x2",O97) -> 452 | Q98: =IF(P98="x2",M98,"") ->  | S98: =IF(H98-H97=0,"",H98-H97) -> 26 | T98: =IF(J98-J97=0,"",J98-J97) -> 7 | U98: =IF(K98-K97=0,"",K98-K97) ->  | V98: =IF(L98-L97=0,"",L98-L97) -> 4 | W98: =IF(M98-M97=0,"",M98-M97) -> 30 | X98: =IF(N98-N97=0,"",N98-N97) -> 164 | Y98: =IF(M98=0,0,H98/M98) -> 0.7101796407 | Z98: =IF(M98=0,0,K98/M98) -> 0.1700598802 | AA98: =IF(M98=0,0,L98/M98) -> 0.119760479 | AB98: =L98*100/B$1138 -> 3533.568905
A99: 2020-04-08T17:00:00 | B99: 2 | C99: Valle d'Aosta | D99: 120 | E99: 20 | F99: 140 | G99: 466 | H99: 606 | I99: 13 | J99: 15 | K99: 142 | L99: 102 | M99: 850 | N99: 2953 | O99: =IF(P99="x2",M99,O98) -> 452 | P99: =IF(M99>O98*2,"x2",O98) -> 452 | Q99: =IF(P99="x2",M99,"") ->  | S99: =IF(H99-H98=0,"",H99-H98) -> 13 | T99: =IF(J99-J98=0,"",J99-J98) -> -15 | U99: =IF(K99-K98=0,"",K99-K98) ->  | V99: =IF(L99-L98=0,"",L99-L98) -> 2 | W99: =IF(M99-M98=0,"",M99-M98) -> 15 | X99: =IF(N99-N98=0,"",N99-N98) -> 199 | Y99: =IF(M99=0,0,H99/M99) -> 0.7129411765 | Z99: =IF(M99=0,0,K99/M99) -> 0.1670588235 | AA99: =IF(M99=0,0,L99/M99) -> 0.12 | AB99: =L99*100/B$1138 -> 3604.240283
A100: =A99+1 -> 2020-04-09T17:00:00 | P100: Media x2 | Q100: =COUNT(M55:M99)/COUNT(Q55:Q99) -> 5.625
A101: =A100+1 -> 2020-04-10T17:00:00
A102: =A101+1 -> 2020-04-11T17:00:00
E103: =E99/$M99 -> 0.02352941176 | H103: =H99/$M99 -> 0.7129411765 | K103: =K99/$M99 -> 0.1670588235 | L103: =L99/$M99 -> 0.12 | N103: =N99/$M99 -> 3.474117647
A107: Data | B107: Codice | C107: Regione | D107: Ricoverati | E107: Terap. Intens. | F107: Ospedalizzati | G107: Quarantena | H107: Positivi | I107: + Positivi | J107: Nuovi | K107: Guariti | L107: Deceduti | M107: Totale | N107: Tamponi | Q107: x 2 | S107: + Positivi | T107: + Nuovi | U107: + Guariti | V107: + Deceduti | W107: + Totali | X107: + Tamponi | Y107: % Positivi | Z107: % Guariti | AA107: % Deceduti | AB107: P. Stimati
A108: 2020-02-24T18:00:00 | B108: 3 | C108: Lombardia | D108: 76 | E108: 19 | F108: 95 | G108: 71 | H108: 166 | J108: 166 | K108: 0 | L108: 6 | M108: 172 | N108: 1463 | O108: =M108 -> 172 | Q108: =M108 -> 172 | Y108: =IF(M108=0,0,H108/M108) -> 0.9651162791 | Z108: =IF(M108=0,0,K108/M108) -> 0 | AA108: =IF(M108=0,0,L108/M108) -> 0.03488372093 | AB108: =L108*100/B$1138 -> 212.0141343
A109: 2020-02-25T18:00:00 | B109: 3 | C109: Lombardia | D109: 79 | E109: 25 | F109: 104 | G109: 127 | H109: 231 | J109: 65 | K109: 0 | L109: 9 | M109: 240 | N109: 3700 | O109: =IF(P109="x2",M109,O108) -> 172 | P109: =IF(M109>O108*2,"x2",O108) -> 172 | Q109: =IF(P109="x2",M109,"") ->  | S109: =IF(H109-H108=0,"",H109-H108) -> 65 | T109: =IF(J109-J108=0,"",J109-J108) -> -101 | U109: =IF(K109-K108=0,"",K109-K108) ->  | V109: =IF(L109-L108=0,"",L109-L108) -> 3 | W109: =IF(M109-M108=0,"",M109-M108) -> 68 | X109: =IF(N109-N108=0,"",N109-N108) -> 2237 | Y109: 0.9625 | Z109: 0 | AA109: 0.0375 | AB109: 318.0212014
A110: 2020-02-26T18:00:00 | B110: 3 | C110: Lombardia | D110: 79 | E110: 25 | F110: 104 | G110: 145 | H110: 249 | J110: 18 | K110: 0 | L110: 9 | M110: 258 | N110: 3208 | O110: 172 | P110: 172 | S110: 18 | T110: -47 | W110: 18 | X110: -492 | Y110: 0.9651162791 | Z110: 0 | AA110: 0.03488372093 | AB110: 318.0212014
A111: 2020-02-27T18:00:00 | B111: 3 | C111: Lombardia | D111: 172 | E111: 41 | F111: 213 | G111: 136 | H111: 349 | J111: 100 | K111: 40 | L111: 14 | M111: 403 | N111: 3320 | O111: 403 | P111: x2 | Q111: 403 | S111: 100 | T111: 82 | U111: 40 | V111: 5 | W111: 145 | X111: 112 | Y111: 0.8660049628 | Z111: 0.09925558313 | AA111: 0.03473945409 | AB111: 494.6996466
A112: 2020-02-28T18:00:00 | B112: 3 | C112: Lombardia | D112: 235 | E112: 47 | F112: 282 | G112: 192 | H112: 474 | J112: 125 | K112: 40 | L112: 17 | M112: 531 | N112: 4835 | O112: 403 | P112: 403 | S112: 125 | T112: 25 | V112: 3 | W112: 128 | X112: 1515 | Y112: 0.8926553672 | Z112: 0.07532956685 | AA112: 0.03201506591 | AB112: 600.7067138
A113: 2020-02-29T17:00:00 | B113: 3 | C113: Lombardia | D113: 256 | E113: 80 | F113: 336 | G113: 216 | H113: 552 | J113: 78 | K113: 40 | L113: 23 | M113: 615 | N113: 5723 | O113: 403 | P113: 403 | S113: 78 | T113: -47 | V113: 6 | W113: 84 | X113: 888 | Y113: 0.8975609756 | Z113: 0.06504065041 | AA113: 0.03739837398 | AB113: 812.7208481
A114: 2020-03-01T17:00:00 | B114: 3 | C114: Lombardia | D114: 406 | E114: 106 | F114: 512 | G114: 375 | H114: 887 | J114: 335 | K114: 73 | L114: 24 | M114: 984 | N114: 6879 | O114: 984 | P114: x2 | Q114: 984 | S114: 335 | T114: 257 | U114: 33 | V114: 1 | W114: 369 | X114: 1156 | Y114: 0.9014227642 | Z114: 0.07418699187 | AA114: 0.0243902439 | AB114: 848.0565371
A115: 2020-03-02T18:00:00 | B115: 3 | C115: Lombardia | D115: 478 | E115: 127 | F115: 605 | G115: 472 | H115: 1077 | J115: 190 | K115: 139 | L115: 38 | M115: 1254 | N115: 7925 | O115: 984 | P115: 984 | S115: 190 | T115: -145 | U115: 66 | V115: 14 | W115: 270 | X115: 1046 | Y115: 0.8588516746 | Z115: 0.1108452951 | AA115: 0.0303030303 | AB115: 1342.756184
A116: 2020-03-03T18:00:00 | B116: 3 | C116: Lombardia | D116: 698 | E116: 167 | F116: 865 | G116: 461 | H116: 1326 | J116: 249 | K116: 139 | L116: 55 | M116: 1520 | N116: 9577 | O116: 984 | P116: 984 | S116: 249 | T116: 59 | V116: 17 | W116: 266 | X116: 1652 | Y116: 0.8723684211 | Z116: 0.09144736842 | AA116: 0.03618421053 | AB116: 1943.462898
A117: 2020-03-04T17:00:00 | B117: 3 | C117: Lombardia | D117: 877 | E117: 209 | F117: 1086 | G117: 411 | H117: 1497 | J117: 171 | K117: 250 | L117: 73 | M117: 1820 | N117: 12138 | O117: 984 | P117: 984 | S117: 171 | T117: -78 | U117: 111 | V117: 18 | W117: 300 | X117: 2561 | Y117: 0.8225274725 | Z117: 0.1373626374 | AA117: 0.04010989011 | AB117: 2579.5053
A118: 2020-03-05T17:00:00 | B118: 3 | C118: Lombardia | D118: 1169 | E118: 244 | F118: 1413 | G118: 364 | H118: 1777 | J118: 280 | K118: 376 | L118: 98 | M118: 2251 | N118: 12354 | O118: 2251 | P118: x2 | Q118: 2251 | S118: 280 | T118: 109 | U118: 126 | V118: 25 | W118: 431 | X118: 216 | Y118: 0.7894269214 | Z118: 0.1670368725 | AA118: 0.04353620613 | AB118: 3462.897527
A119: 2020-03-06T17:00:00 | B119: 3 | C119: Lombardia | D119: 1622 | E119: 309 | F119: 1931 | G119: 77 | H119: 2008 | J119: 231 | K119: 469 | L119: 135 | M119: 2612 | N119: 13556 | O119: 2251 | P119: 2251 | S119: 231 | T119: -49 | U119: 93 | V119: 37 | W119: 361 | X119: 1202 | Y119: 0.7687595712 | Z119: 0.1795558959 | AA119: 0.05168453292 | AB119: 4770.318021
A120: 2020-03-07T18:00:00 | B120: 3 | C120: Lombardia | D120: 1661 | E120: 359 | F120: 2020 | G120: 722 | H120: 2742 | J120: 734 | K120: 524 | L120: 154 | M120: 3420 | N120: 15778 | O120: 2251 | P120: 2251 | S120: 734 | T120: 503 | U120: 55 | V120: 19 | W120: 808 | X120: 2222 | Y120: 0.801754386 | Z120: 0.1532163743 | AA120: 0.04502923977 | AB120: 5441.696113
A121: 2020-03-08T18:00:00 | B121: 3 | C121: Lombardia | D121: 2217 | E121: 399 | F121: 2616 | G121: 756 | H121: 3372 | J121: 630 | K121: 550 | L121: 267 | M121: 4189 | N121: 18534 | O121: 2251 | P121: 2251 | S121: 630 | T121: -104 | U121: 26 | V121: 113 | W121: 769 | X121: 2756 | Y121: 0.8049653855 | Z121: 0.1312962521 | AA121: 0.06373836238 | AB121: 9434.628975
A122: 2020-03-09T18:00:00 | B122: 3 | C122: Lombardia | D122: 2802 | E122: 440 | F122: 3242 | G122: 1248 | H122: 4490 | J122: 1118 | K122: 646 | L122: 333 | M122: 5469 | N122: 20135 | O122: 5469 | P122: x2 | Q122: 5469 | S122: 1118 | T122: 488 | U122: 96 | V122: 66 | W122: 1280 | X122: 1601 | Y122: 0.8209910404 | Z122: 0.1181203145 | AA122: 0.06088864509 | AB122: 11766.78445
A123: 2020-03-10T18:00:00 | B123: 3 | C123: Lombardia | D123: 3319 | E123: 466 | F123: 3785 | G123: 642 | H123: 4427 | J123: -63 | K123: 896 | L123: 468 | M123: 5791 | N123: 21479 | O123: 5469 | P123: 5469 | S123: -63 | T123: -1181 | U123: 250 | V123: 135 | W123: 322 | X123: 1344 | Y123: 0.7644620964 | Z123: 0.1547228458 | AA123: 0.08081505785 | AB123: 16537.10247
A124: 2020-03-11T17:00:00 | B124: 3 | C124: Lombardia | D124: 3852 | E124: 560 | F124: 4412 | G124: 1351 | H124: 5763 | J124: 1336 | K124: 900 | L124: 617 | M124: 7280 | N124: 25629 | O124: 5469 | P124: 5469 | S124: 1336 | T124: 1399 | U124: 4 | V124: 149 | W124: 1489 | X124: 4150 | Y124: 0.7916208791 | Z124: 0.1236263736 | AA124: 0.08475274725 | AB124: 21802.12014
A125: 2020-03-12T17:00:00 | B125: 3 | C125: Lombardia | D125: 4247 | E125: 605 | F125: 4852 | G125: 2044 | H125: 6896 | J125: 1133 | K125: 1085 | L125: 744 | M125: 8725 | N125: 29534 | O125: 5469 | P125: 5469 | S125: 1133 | T125: -203 | U125: 185 | V125: 127 | W125: 1445 | X125: 3905 | Y125: 0.7903724928 | Z125: 0.1243553009 | AA125: 0.0852722063 | AB125: 26289.75265
A126: 2020-03-13T17:00:00 | B126: 3 | C126: Lombardia | D126: 4435 | E126: 650 | F126: 5085 | G126: 2647 | H126: 7732 | J126: 836 | K126: 1198 | L126: 890 | M126: 9820 | N126: 32700 | O126: 5469 | P126: 5469 | S126: 836 | T126: -297 | U126: 113 | V126: 146 | W126: 1095 | X126: 3166 | Y126: 0.7873727088 | Z126: 0.1219959267 | AA126: 0.09063136456 | AB126: 31448.76325
A127: 2020-03-14T17:00:00 | B127: 3 | C127: Lombardia | D127: 4898 | E127: 732 | F127: 5630 | G127: 3429 | H127: 9059 | J127: 1327 | K127: 1660 | L127: 966 | M127: 11685 | N127: 37138 | O127: 11685 | P127: x2 | Q127: 11685 | S127: 1327 | T127: 491 | U127: 462 | V127: 76 | W127: 1865 | X127: 4438 | Y127: 0.7752674369 | Z127: 0.1420624733 | AA127: 0.08267008986 | AB127: 34134.27562
A128: 2020-03-15T17:00:00 | B128: 3 | C128: Lombardia | D128: 5500 | E128: 767 | F128: 6267 | G128: 3776 | H128: 10043 | J128: 984 | K128: 2011 | L128: 1218 | M128: 13272 | N128: 40369 | O128: 11685 | P128: 11685 | S128: 984 | T128: -343 | U128: 351 | V128: 252 | W128: 1587 | X128: 3231 | Y128: 0.7567058469 | Z128: 0.1515220012 | AA128: 0.0917721519 | AB128: 43038.86926
A129: 2020-03-16T17:00:00 | B129: 3 | C129: Lombardia | D129: 6171 | E129: 823 | F129: 6994 | G129: 3867 | H129: 10861 | J129: 818 | K129: 2368 | L129: 1420 | M129: 14649 | N129: 43565 | O129: 11685 | P129: 11685 | S129: 818 | T129: -166 | U129: 357 | V129: 202 | W129: 1377 | X129: 3196 | Y129: 0.7414157963 | Z129: 0.1616492593 | AA129: 0.09693494436 | AB129: 50176.67845
A130: 2020-03-17T17:00:00 | B130: 3 | C130: Lombardia | D130: 6953 | E130: 879 | F130: 7832 | G130: 4263 | H130: 12095 | J130: 1234 | K130: 2485 | L130: 1640 | M130: 16220 | N130: 46449 | O130: 11685 | P130: 11685 | S130: 1234 | T130: 416 | U130: 117 | V130: 220 | W130: 1571 | X130: 2884 | Y130: 0.7456843403 | Z130: 0.1532059186 | AA130: 0.1011097411 | AB130: 57950.53004
A131: 2020-03-18T17:00:00 | B131: 3 | C131: Lombardia | D131: 7285 | E131: 924 | F131: 8209 | G131: 4057 | H131: 12266 | J131: 171 | K131: 3488 | L131: 1959 | M131: 17713 | N131: 48983 | O131: 11685 | P131: 11685 | S131: 171 | T131: -1063 | U131: 1003 | V131: 319 | W131: 1493 | X131: 2534 | Y131: 0.6924857449 | Z131: 0.1969175182 | AA131: 0.1105967369 | AB131: 69222.61484
A132: 2020-03-19T17:00:00 | B132: 3 | C132: Lombardia | D132: 7387 | E132: 1006 | F132: 8393 | G132: 5545 | H132: 13938 | J132: 1672 | K132: 3778 | L132: 2168 | M132: 19884 | N132: 52244 | O132: 11685 | P132: 11685 | S132: 1672 | T132: 1501 | U132: 290 | V132: 209 | W132: 2171 | X132: 3261 | Y132: 0.7009656005 | Z132: 0.1900020117 | AA132: 0.1090323878 | AB132: 76607.77385
A133: 2020-03-20T17:00:00 | B133: 3 | C133: Lombardia | D133: 7735 | E133: 1050 | F133: 8785 | G133: 6635 | H133: 15420 | J133: 1482 | K133: 4295 | L133: 2549 | M133: 22264 | N133: 57174 | O133: 11685 | P133: 11685 | S133: 1482 | T133: -190 | U133: 517 | V133: 381 | W133: 2380 | X133: =IF(N133-N132=0,"",N133-N132) -> 4930 | Y133: 0.6925979159 | Z133: 0.1929123248 | AA133: 0.1144897593 | AB133: 90070.67138
A134: 2020-03-21T17:00:00 | B134: 3 | C134: Lombardia | D134: 8258 | E134: 1093 | F134: 9351 | G134: 8019 | H134: 17370 | J134: 1950 | K134: 5050 | L134: 3095 | M134: 25515 | N134: 66730 | O134: 25515 | P134: x2 | Q134: 25515 | S134: 1950 | T134: 468 | U134: 755 | V134: 546 | W134: =IF(M134-M133=0,"",M134-M133) -> 3251 | X134: 9556 | Y134: 0.6807760141 | Z134: 0.1979227905 | AA134: 0.1213011954 | AB134: 109363.9576
A135: 2020-03-22T17:00:00 | B135: 3 | C135: Lombardia | D135: 9439 | E135: 1142 | F135: 10581 | G135: 7304 | H135: 17885 | J135: 515 | K135: 5865 | L135: 3456 | M135: 27206 | N135: 70598 | O135: 25515 | P135: 25515 | S135: 515 | T135: -1435 | U135: 815 | V135: 361 | W135: 1691 | X135: 3868 | Y135: 0.6573917518 | Z135: 0.2155774462 | AA135: 0.127030802 | AB135: 122120.1413
A136: 2020-03-23T17:00:00 | B136: 3 | C136: Lombardia | D136: 9266 | E136: 1183 | F136: 10449 | G136: 8461 | H136: 18910 | J136: 1025 | K136: 6075 | L136: 3776 | M136: 28761 | N136: 73242 | O136: 25515 | P136: 25515 | S136: 1025 | T136: 510 | U136: 210 | V136: 320 | W136: 1555 | X136: 2644 | Y136: 0.65748757 | Z136: 0.2112235319 | AA136: 0.1312888982 | AB136: 133427.5618
A137: 2020-03-24T17:00:00 | B137: 3 | C137: Lombardia | D137: 9711 | E137: 1194 | F137: 10905 | G137: 8963 | H137: 19868 | J137: 958 | K137: 6657 | L137: 4178 | M137: 30703 | N137: 76695 | O137: 25515 | P137: 25515 | S137: 958 | T137: -67 | U137: 582 | V137: 402 | W137: 1942 | X137: 3453 | Y137: 0.647102889 | Z137: 0.2168192033 | AA137: 0.1360779077 | AB137: 147632.5088
A138: 2020-03-25T17:00:00 | B138: 3 | C138: Lombardia | D138: 10026 | E138: 1236 | F138: 11262 | G138: 9329 | H138: 20591 | J138: 723 | K138: 7281 | L138: 4474 | M138: 32346 | N138: 81666 | O138: 25515 | P138: 25515 | S138: 723 | T138: -235 | U138: 624 | V138: 296 | W138: 1643 | X138: 4971 | Y138: 0.6365856675 | Z138: 0.2250973845 | AA138: 0.138316948 | AB138: 158091.8728
A139: 2020-03-26T17:00:00 | B139: 3 | C139: Lombardia | D139: 10681 | E139: 1263 | F139: 11944 | G139: 10245 | H139: 22189 | J139: 1598 | K139: 7839 | L139: 4861 | M139: 34889 | N139: 87713 | O139: 25515 | P139: 25515 | S139: 1598 | T139: 875 | U139: 558 | V139: 387 | W139: 2543 | X139: =IF(N139-N138=0,"",N139-N138) -> 6047 | Y139: 0.6359884204 | Z139: 0.2246839978 | AA139: 0.1393275818 | AB139: 171766.7845
A140: 2020-03-27T17:00:00 | B140: 3 | C140: Lombardia | D140: 11137 | E140: 1292 | F140: 12429 | G140: 11466 | H140: 23895 | I140: 1706 | J140: 2409 | K140: 8001 | L140: 5402 | M140: 37298 | N140: 95860 | O140: =IF(P140="x2",M140,O139) -> 25515 | P140: =IF(M140>O139*2,"x2",O139) -> 25515 | Q140: =IF(P140="x2",M140,"") ->  | S140: =IF(H140-H139=0,"",H140-H139) -> 1706 | T140: =IF(J140-J139=0,"",J140-J139) -> 811 | U140: 162 | V140: 541 | W140: 2409 | X140: 8147 | Y140: 0.6406509732 | Z140: 0.2145155236 | AA140: 0.1448335031 | AB140: 190883.3922
A141: 2020-03-28T17:00:00 | B141: 3 | C141: Lombardia | D141: 11152 | E141: 1319 | F141: 12471 | G141: 12038 | H141: 24509 | I141: 614 | J141: 2117 | K141: 8962 | L141: 5944 | M141: 39415 | N141: 102503 | O141: 25515 | P141: 25515 | S141: 614 | T141: -292 | U141: 961 | V141: 542 | W141: 2117 | X141: 6643 | Y141: 0.6218191044 | Z141: 0.2273753647 | AA141: 0.1508055309 | AB141: 210035.3357
A142: 2020-03-29T17:00:00 | B142: 3 | C142: Lombardia | D142: 11613 | E142: 1328 | F142: 12941 | G142: 12451 | H142: 25392 | I142: 883 | J142: 1592 | K142: 9255 | L142: 6360 | M142: 41007 | N142: 107398 | O142: 25515 | P142: 25515 | S142: 883 | T142: -525 | U142: 293 | V142: 416 | W142: 1592 | X142: 4895 | Y142: 0.6192113542 | Z142: 0.2256931743 | AA142: 0.1550954715 | AB142: 224734.9823
A143: 2020-03-30T17:00:00 | B143: 3 | C143: Lombardia | D143: 11815 | E143: 1330 | F143: 13145 | G143: 11861 | H143: 25006 | I143: -386 | J143: 1154 | K143: 10337 | L143: 6818 | M143: 42161 | N143: 111057 | O143: 25515 | P143: 25515 | S143: -386 | T143: -438 | U143: 1082 | V143: 458 | W143: 1154 | X143: 3659 | Y143: 0.5931073741 | Z143: 0.245179194 | AA143: 0.1617134318 | AB143: 240918.7279
A144: 2020-03-31T17:00:00 | B144: 3 | C144: Lombardia | D144: 11883 | E144: 1324 | F144: 13207 | G144: 11917 | H144: 25124 | I144: 118 | J144: 1047 | K144: 10885 | L144: 7199 | M144: 43208 | N144: 114640 | O144: 25515 | P144: 25515 | S144: 118 | T144: -107 | U144: 548 | V144: 381 | W144: 1047 | X144: 3583 | Y144: 0.5814663951 | Z144: 0.2519209406 | AA144: 0.1666126643 | AB144: 254381.6254
A145: 2020-04-01T17:00:00 | B145: 3 | C145: Lombardia | D145: 11927 | E145: 1342 | F145: 13269 | G145: 12496 | H145: 25765 | I145: 641 | J145: 1565 | K145: 11415 | L145: 7593 | M145: 44773 | N145: 121449 | O145: 25515 | P145: 25515 | S145: 641 | T145: 518 | U145: 530 | V145: 394 | W145: 1565 | X145: =IF(N145-N144=0,"",N145-N144) -> 6809 | Y145: =IF(M145=0,0,H145/M145) -> 0.5754584236 | Z145: =IF(M145=0,0,K145/M145) -> 0.2549527617 | AA145: =IF(M145=0,0,L145/M145) -> 0.1695888147 | AB145: 268303.8869
A146: 2020-04-02T17:00:00 | B146: 3 | C146: Lombardia | D146: 11762 | E146: 1351 | F146: 13113 | G146: 12763 | H146: 25876 | I146: 111 | J146: 1292 | K146: 12229 | L146: 7960 | M146: 46065 | N146: 128286 | O146: =IF(P146="x2",M146,O145) -> 25515 | P146: =IF(M146>O145*2,"x2",O145) -> 25515 | Q146: =IF(P146="x2",M146,"") ->  | S146: =IF(H146-H145=0,"",H146-H145) -> 111 | T146: =IF(J146-J145=0,"",J146-J145) -> -273 | U146: =IF(K146-K145=0,"",K146-K145) -> 814 | V146: =IF(L146-L145=0,"",L146-L145) -> 367 | W146: =IF(M146-M145=0,"",M146-M145) -> 1292 | X146: 6837 | Y146: 0.5617279931 | Z146: 0.2654727016 | AA146: 0.1727993053 | AB146: 281272.0848
A147: 2020-04-03T17:00:00 | B147: 3 | C147: Lombardia | D147: 11802 | E147: 1381 | F147: 13183 | G147: 13006 | H147: 26189 | I147: 313 | J147: 1455 | K147: 13020 | L147: 8311 | M147: 47520 | N147: 135051 | O147: =IF(P147="x2",M147,O146) -> 25515 | P147: =IF(M147>O146*2,"x2",O146) -> 25515 | Q147: =IF(P147="x2",M147,"") ->  | S147: =IF(H147-H146=0,"",H147-H146) -> 313 | T147: =IF(J147-J146=0,"",J147-J146) -> 163 | U147: =IF(K147-K146=0,"",K147-K146) -> 791 | V147: =IF(L147-L146=0,"",L147-L146) -> 351 | W147: =IF(M147-M146=0,"",M147-M146) -> 1455 | X147: 6765 | Y147: 0.5511153199 | Z147: 0.273989899 | AA147: 0.1748947811 | AB147: =L147*100/B$1138 -> 293674.9117
A148: 2020-04-04T17:00:00 | B148: 3 | C148: Lombardia | D148: 12002 | E148: 1326 | F148: 13328 | G148: 13892 | H148: 27220 | I148: 1031 | J148: 1598 | K148: 13242 | L148: 8656 | M148: 49118 | N148: 141877 | O148: =IF(P148="x2",M148,O147) -> 25515 | P148: =IF(M148>O147*2,"x2",O147) -> 25515 | Q148: =IF(P148="x2",M148,"") ->  | S148: =IF(H148-H147=0,"",H148-H147) -> 1031 | T148: =IF(J148-J147=0,"",J148-J147) -> 143 | U148: =IF(K148-K147=0,"",K148-K147) -> 222 | V148: =IF(L148-L147=0,"",L148-L147) -> 345 | W148: =IF(M148-M147=0,"",M148-M147) -> 1598 | X148: 6826 | Y148: 0.5541756586 | Z148: 0.2695956676 | AA148: 0.1762286738 | AB148: =L148*100/B$1138 -> 305865.7244
A149: 2020-04-05T17:00:00 | B149: 3 | C149: Lombardia | D149: 12009 | E149: 1317 | F149: 13326 | G149: 14798 | H149: 28124 | I149: 904 | J149: 1337 | K149: 13426 | L149: 8905 | M149: 50455 | N149: 149984 | O149: =IF(P149="x2",M149,O148) -> 25515 | P149: =IF(M149>O148*2,"x2",O148) -> 25515 | Q149: =IF(P149="x2",M149,"") ->  | S149: =IF(H149-H148=0,"",H149-H148) -> 904 | T149: =IF(J149-J148=0,"",J149-J148) -> -261 | U149: =IF(K149-K148=0,"",K149-K148) -> 184 | V149: =IF(L149-L148=0,"",L149-L148) -> 249 | W149: =IF(M149-M148=0,"",M149-M148) -> 1337 | X149: 8107 | Y149: 0.5574075909 | Z149: 0.2660985036 | AA149: 0.1764939055 | AB149: =L149*100/B$1138 -> 314664.311
A150: 2020-04-06T17:00:00 | B150: 3 | C150: Lombardia | D150: 11914 | E150: 1343 | F150: 13257 | G150: 15212 | H150: 28469 | I150: 345 | J150: 1079 | K150: 13863 | L150: 9202 | M150: 51534 | N150: 154989 | O150: =IF(P150="x2",M150,O149) -> 51534 | P150: =IF(M150>O149*2,"x2",O149) -> x2 | Q150: =IF(P150="x2",M150,"") -> 51534 | S150: =IF(H150-H149=0,"",H150-H149) -> 345 | T150: =IF(J150-J149=0,"",J150-J149) -> -258 | U150: =IF(K150-K149=0,"",K150-K149) -> 437 | V150: =IF(L150-L149=0,"",L150-L149) -> 297 | W150: =IF(M150-M149=0,"",M150-M149) -> 1079 | X150: 5005 | Y150: 0.5524314045 | Z150: 0.2690068693 | AA150: 0.1785617262 | AB150: =L150*100/B$1138 -> 325159.0106
A151: 2020-04-07T17:00:00 | B151: 3 | C151: Lombardia | D151: 11833 | E151: 1305 | F151: 13138 | G151: 15205 | H151: 28343 | I151: -126 | J151: 791 | K151: 14498 | L151: 9484 | M151: 52325 | N151: 159331 | O151: =IF(P151="x2",M151,O150) -> 51534 | P151: =IF(M151>O150*2,"x2",O150) -> 51534 | Q151: =IF(P151="x2",M151,"") ->  | S151: =IF(H151-H150=0,"",H151-H150) -> -126 | T151: =IF(J151-J150=0,"",J151-J150) -> -288 | U151: =IF(K151-K150=0,"",K151-K150) -> 635 | V151: =IF(L151-L150=0,"",L151-L150) -> 282 | W151: =IF(M151-M150=0,"",M151-M150) -> 791 | X151: =IF(N151-N150=0,"",N151-N150) -> 4342 | Y151: =IF(M151=0,0,H151/M151) -> 0.5416722408 | Z151: =IF(M151=0,0,K151/M151) -> 0.2770759675 | AA151: =IF(M151=0,0,L151/M151) -> 0.1812517917 | AB151: =L151*100/B$1138 -> 335123.6749
A152: 2020-04-08T17:00:00 | B152: 3 | C152: Lombardia | D152: 11719 | E152: 1257 | F152: 12976 | G152: 15569 | H152: 28545 | I152: 202 | J152: 1089 | K152: 15147 | L152: 9722 | M152: 53414 | N152: 167557 | O152: =IF(P152="x2",M152,O151) -> 51534 | P152: =IF(M152>O151*2,"x2",O151) -> 51534 | Q152: =IF(P152="x2",M152,"") ->  | S152: =IF(H152-H151=0,"",H152-H151) -> 202 | T152: =IF(J152-J151=0,"",J152-J151) -> 298 | U152: =IF(K152-K151=0,"",K152-K151) -> 649 | V152: =IF(L152-L151=0,"",L152-L151) -> 238 | W152: =IF(M152-M151=0,"",M152-M151) -> 1089 | X152: =IF(N152-N151=0,"",N152-N151) -> 8226 | Y152: =IF(M152=0,0,H152/M152) -> 0.5344104542 | Z152: =IF(M152=0,0,K152/M152) -> 0.2835773393 | AA152: =IF(M152=0,0,L152/M152) -> 0.1820122065 | AB152: =L152*100/B$1138 -> 343533.5689
A153: =A152+1 -> 2020-04-09T17:00:00 | P153: Media x2 | Q153: =COUNT(M108:M152)/COUNT(Q108:Q152) -> 5.625
A154: =A153+1 -> 2020-04-10T17:00:00
A155: =A154+1 -> 2020-04-11T17:00:00
E156: =E152/$M152 -> 0.0235331561 | H156: =H152/$M152 -> 0.5344104542 | K156: =K152/$M152 -> 0.2835773393 | L156: =L152/$M152 -> 0.1820122065 | N156: =N152/$M152 -> 3.136949114
A160: Data | B160: Codice | C160: Regione | D160: Ricoverati | E160: Terap. Intens. | F160: Ospedalizzati | G160: Quarantena | H160: Positivi | I160: + Positivi | J160: Nuovi | K160: Guariti | L160: Deceduti | M160: Totale | N160: Tamponi | Q160: x 2 | S160: + Positivi | T160: + Nuovi | U160: + Guariti | V160: + Deceduti | W160: + Totali | X160: + Tamponi | Y160: % Positivi | Z160: % Guariti | AA160: % Deceduti | AB160: P. Stimati
A161: 2020-02-24T18:00:00 | B161: 4 | C161: P.A. Bolzano | D161: 0 | E161: 0 | F161: 0 | G161: 0 | H161: 0 | J161: 0 | K161: 0 | L161: 0 | M161: 0 | N161: 1 | O161: =M161 -> 0 | Q161: =M161 -> 0 | Y161: =IF(M161=0,0,H161/M161) -> 0 | Z161: =IF(M161=0,0,K161/M161) -> 0 | AA161: =IF(M161=0,0,L161/M161) -> 0 | AB161: =L161*100/B$1138 -> 0
A162: 2020-02-25T18:00:00 | B162: 4 | C162: P.A. Bolzano | D162: 1 | E162: 0 | F162: 1 | G162: 0 | H162: 1 | J162: 1 | K162: 0 | L162: 0 | M162: 1 | N162: 1 | O162: =IF(P162="x2",M162,O161) -> 1 | P162: =IF(M162>O161*2,"x2",O161) -> x2 | Q162: =IF(P162="x2",M162,"") -> 1 | S162: =IF(H162-H161=0,"",H162-H161) -> 1 | T162: =IF(J162-J161=0,"",J162-J161) -> 1 | U162: =IF(K162-K161=0,"",K162-K161) ->  | V162: =IF(L162-L161=0,"",L162-L161) ->  | W162: =IF(M162-M161=0,"",M162-M161) -> 1 | X162: =IF(N162-N161=0,"",N162-N161) ->  | Y162: 1 | Z162: 0 | AA162: 0 | AB162: 0
A163: 2020-02-26T18:00:00 | B163: 4 | C163: P.A. Bolzano | D163: 1 | E163: 0 | F163: 1 | G163: 0 | H163: 1 | J163: 0 | K163: 0 | L163: 0 | M163: 1 | N163: 1 | O163: 1 | P163: 1 | T163: -1 | Y163: 1 | Z163: 0 | AA163: 0 | AB163: 0
A164: 2020-02-27T18:00:00 | B164: 4 | C164: P.A. Bolzano | D164: 1 | E164: 0 | F164: 1 | G164: 0 | H164: 1 | J164: 0 | K164: 0 | L164: 0 | M164: 1 | N164: 2 | O164: 1 | P164: 1 | X164: 1 | Y164: 1 | Z164: 0 | AA164: 0 | AB164: 0
A165: 2020-02-28T18:00:00 | B165: 4 | C165: P.A. Bolzano | D165: 1 | E165: 0 | F165: 1 | G165: 0 | H165: 1 | J165: 0 | K165: 0 | L165: 0 | M165: 1 | N165: 2 | O165: 1 | P165: 1 | Y165: 1 | Z165: 0 | AA165: 0 | AB165: 0
A166: 2020-02-29T17:00:00 | B166: 4 | C166: P.A. Bolzano | D166: 1 | E166: 0 | F166: 1 | G166: 0 | H166: 1 | J166: 0 | K166: 0 | L166: 0 | M166: 1 | N166: 16 | O166: 1 | P166: 1 | X166: 14 | Y166: 1 | Z166: 0 | AA166: 0 | AB166: 0
A167: 2020-03-01T17:00:00 | B167: 4 | C167: P.A. Bolzano | D167: 1 | E167: 0 | F167: 1 | G167: 0 | H167: 1 | J167: 0 | K167: 0 | L167: 0 | M167: 1 | N167: 20 | O167: 1 | P167: 1 | X167: 4 | Y167: 1 | Z167: 0 | AA167: 0 | AB167: 0
A168: 2020-03-02T18:00:00 | B168: 4 | C168: P.A. Bolzano | D168: 1 | E168: 0 | F168: 1 | G168: 0 | H168: 1 | J168: 0 | K168: 0 | L168: 0 | M168: 1 | N168: 20 | O168: 1 | P168: 1 | Y168: 1 | Z168: 0 | AA168: 0 | AB168: 0
A169: 2020-03-03T18:00:00 | B169: 4 | C169: P.A. Bolzano | D169: 1 | E169: 0 | F169: 1 | G169: 0 | H169: 1 | J169: 0 | K169: 0 | L169: 0 | M169: 1 | N169: 20 | O169: 1 | P169: 1 | Y169: 1 | Z169: 0 | AA169: 0 | AB169: 0
A170: 2020-03-04T17:00:00 | B170: 4 | C170: P.A. Bolzano | D170: 1 | E170: 0 | F170: 1 | G170: 0 | H170: 1 | J170: 0 | K170: 0 | L170: 0 | M170: 1 | N170: 20 | O170: 1 | P170: 1 | Y170: 1 | Z170: 0 | AA170: 0 | AB170: 0
A171: 2020-03-05T17:00:00 | B171: 4 | C171: P.A. Bolzano | D171: 1 | E171: 0 | F171: 1 | G171: 0 | H171: 1 | J171: 0 | K171: 0 | L171: 0 | M171: 1 | N171: 20 | O171: 1 | P171: 1 | Y171: 1 | Z171: 0 | AA171: 0 | AB171: 0
A172: 2020-03-06T17:00:00 | B172: 4 | C172: P.A. Bolzano | D172: 4 | E172: 0 | F172: 4 | G172: 0 | H172: 4 | J172: 3 | K172: 0 | L172: 0 | M172: 4 | N172: 36 | O172: 4 | P172: x2 | Q172: 4 | S172: 3 | T172: 3 | W172: 3 | X172: 16 | Y172: 1 | Z172: 0 | AA172: 0 | AB172: 0
A173: 2020-03-07T18:00:00 | B173: 4 | C173: P.A. Bolzano | D173: 8 | E173: 0 | F173: 8 | G173: 1 | H173: 9 | J173: 5 | K173: 0 | L173: 0 | M173: 9 | N173: 36 | O173: 9 | P173: x2 | Q173: 9 | S173: 5 | T173: 2 | W173: 5 | Y173: 1 | Z173: 0 | AA173: 0 | AB173: 0
A174: 2020-03-08T18:00:00 | B174: 4 | C174: P.A. Bolzano | D174: 8 | E174: 0 | F174: 8 | G174: 1 | H174: 9 | J174: 0 | K174: 0 | L174: 0 | M174: 9 | N174: 36 | O174: 9 | P174: 9 | T174: -5 | Y174: 1 | Z174: 0 | AA174: 0 | AB174: 0
A175: 2020-03-09T18:00:00 | B175: 4 | C175: P.A. Bolzano | D175: 8 | E175: 0 | F175: 8 | G175: 1 | H175: 9 | J175: 0 | K175: 0 | L175: 0 | M175: 9 | N175: 36 | O175: 9 | P175: 9 | Y175: 1 | Z175: 0 | AA175: 0 | AB175: 0
A176: 2020-03-10T18:00:00 | B176: 4 | C176: P.A. Bolzano | D176: 17 | E176: 1 | F176: 18 | G176: 20 | H176: 38 | J176: 29 | K176: 0 | L176: 0 | M176: 38 | N176: 36 | O176: 38 | P176: x2 | Q176: 38 | S176: 29 | T176: 29 | W176: 29 | Y176: 1 | Z176: 0 | AA176: 0 | AB176: 0
A177: 2020-03-11T17:00:00 | B177: 4 | C177: P.A. Bolzano | D177: 8 | E177: 4 | F177: 12 | G177: 63 | H177: 75 | J177: 37 | K177: 0 | L177: 0 | M177: 75 | N177: 75 | O177: 38 | P177: 38 | S177: 37 | T177: 8 | W177: 37 | X177: 39 | Y177: 1 | Z177: 0 | AA177: 0 | AB177: 0
A178: 2020-03-12T17:00:00 | B178: 4 | C178: P.A. Bolzano | D178: 21 | E178: 4 | F178: 25 | G178: 78 | H178: 103 | J178: 28 | K178: 0 | L178: 1 | M178: 104 | N178: 607 | O178: 104 | P178: x2 | Q178: 104 | S178: 28 | T178: -9 | V178: 1 | W178: 29 | X178: 532 | Y178: 0.9903846154 | Z178: 0 | AA178: 0.009615384615 | AB178: 35.33568905
A179: 2020-03-13T17:00:00 | B179: 4 | C179: P.A. Bolzano | D179: 20 | E179: 5 | F179: 25 | G179: 98 | H179: 123 | J179: 20 | K179: 0 | L179: 2 | M179: 125 | N179: 811 | O179: 104 | P179: 104 | S179: 20 | T179: -8 | V179: 1 | W179: 21 | X179: 204 | Y179: 0.984 | Z179: 0 | AA179: 0.016 | AB179: 70.67137809
A180: 2020-03-14T17:00:00 | B180: 4 | C180: P.A. Bolzano | D180: 26 | E180: 7 | F180: 33 | G180: 137 | H180: 170 | J180: 47 | K180: 0 | L180: 3 | M180: 173 | N180: 1135 | O180: 104 | P180: 104 | S180: 47 | T180: 27 | V180: 1 | W180: 48 | X180: 324 | Y180: 0.9826589595 | Z180: 0 | AA180: 0.01734104046 | AB180: 106.0070671
A181: 2020-03-15T17:00:00 | B181: 4 | C181: P.A. Bolzano | D181: 50 | E181: 4 | F181: 54 | G181: 145 | H181: 199 | J181: 29 | K181: 0 | L181: 5 | M181: 204 | N181: 1497 | O181: 104 | P181: 104 | S181: 29 | T181: -18 | V181: 2 | W181: 31 | X181: 362 | Y181: 0.9754901961 | Z181: 0 | AA181: 0.02450980392 | AB181: 176.6784452
A182: 2020-03-16T17:00:00 | B182: 4 | C182: P.A. Bolzano | D182: 53 | E182: 11 | F182: 64 | G182: 171 | H182: 235 | J182: 36 | K182: 0 | L182: 6 | M182: 241 | N182: 1740 | O182: 241 | P182: x2 | Q182: 241 | S182: 36 | T182: 7 | V182: 1 | W182: 37 | X182: 243 | Y182: 0.9751037344 | Z182: 0 | AA182: 0.02489626556 | AB182: 212.0141343
A183: 2020-03-17T17:00:00 | B183: 4 | C183: P.A. Bolzano | D183: 71 | E183: 11 | F183: 82 | G183: 200 | H183: 282 | J183: 47 | K183: 1 | L183: 8 | M183: 291 | N183: 2149 | O183: 241 | P183: 241 | S183: 47 | T183: 11 | U183: 1 | V183: 2 | W183: 50 | X183: 409 | Y183: 0.9690721649 | Z183: 0.003436426117 | AA183: 0.02749140893 | AB183: 282.6855124
A184: 2020-03-18T17:00:00 | B184: 4 | C184: P.A. Bolzano | D184: 79 | E184: 18 | F184: 97 | G184: 269 | H184: 366 | J184: 84 | K184: 1 | L184: 9 | M184: 376 | N184: 2844 | O184: 241 | P184: 241 | S184: 84 | T184: 37 | V184: 1 | W184: 85 | X184: 695 | Y184: 0.9734042553 | Z184: 0.002659574468 | AA184: 0.02393617021 | AB184: 318.0212014
A185: 2020-03-19T17:00:00 | B185: 4 | C185: P.A. Bolzano | D185: 87 | E185: 18 | F185: 105 | G185: 316 | H185: 421 | J185: 55 | K185: 1 | L185: 14 | M185: 436 | N185: 3568 | O185: 241 | P185: 241 | S185: 55 | T185: -29 | V185: 5 | W185: 60 | X185: 724 | Y185: 0.9655963303 | Z185: 0.002293577982 | AA185: 0.03211009174 | AB185: 494.6996466
A186: 2020-03-20T17:00:00 | B186: 4 | C186: P.A. Bolzano | D186: 99 | E186: 24 | F186: 123 | G186: 407 | H186: 530 | J186: 109 | K186: 1 | L186: 17 | M186: 548 | N186: 4433 | O186: 548 | P186: x2 | Q186: 548 | S186: 109 | T186: 54 | V186: 3 | W186: 112 | X186: =IF(N186-N185=0,"",N186-N185) -> 865 | Y186: 0.9671532847 | Z186: 0.001824817518 | AA186: 0.03102189781 | AB186: 600.7067138
A187: 2020-03-21T17:00:00 | B187: 4 | C187: P.A. Bolzano | D187: 127 | E187: 30 | F187: 157 | G187: 443 | H187: 600 | J187: 70 | K187: 1 | L187: 20 | M187: 621 | N187: 5179 | O187: 548 | P187: 548 | S187: 70 | T187: -39 | V187: 3 | W187: =IF(M187-M186=0,"",M187-M186) -> 73 | X187: 746 | Y187: 0.9661835749 | Z187: 0.001610305958 | AA187: 0.03220611916 | AB187: 706.7137809
A188: 2020-03-22T17:00:00 | B188: 4 | C188: P.A. Bolzano | D188: 146 | E188: 32 | F188: 178 | G188: 470 | H188: 648 | J188: 48 | K188: 7 | L188: 23 | M188: 678 | N188: 5718 | O188: 548 | P188: 548 | S188: 48 | T188: -22 | U188: 6 | V188: 3 | W188: 57 | X188: 539 | Y188: 0.9557522124 | Z188: 0.01032448378 | AA188: 0.03392330383 | AB188: 812.7208481
A189: 2020-03-23T17:00:00 | B189: 4 | C189: P.A. Bolzano | D189: 145 | E189: 33 | F189: 178 | G189: 510 | H189: 688 | J189: 40 | K189: 7 | L189: 29 | M189: 724 | N189: 6084 | O189: 548 | P189: 548 | S189: 40 | T189: -8 | V189: 6 | W189: 46 | X189: 366 | Y189: 0.9502762431 | Z189: 0.009668508287 | AA189: 0.04005524862 | AB189: 1024.734982
A190: 2020-03-24T17:00:00 | B190: 4 | C190: P.A. Bolzano | D190: 166 | E190: 38 | F190: 204 | G190: 495 | H190: 699 | J190: 11 | K190: 44 | L190: 38 | M190: 781 | N190: 6509 | O190: 548 | P190: 548 | S190: 11 | T190: -29 | U190: 37 | V190: 9 | W190: 57 | X190: 425 | Y190: 0.895006402 | Z190: 0.05633802817 | AA190: 0.04865556978 | AB190: 1342.756184
A191: 2020-03-25T17:00:00 | B191: 4 | C191: P.A. Bolzano | D191: 190 | E191: 40 | F191: 230 | G191: 518 | H191: 748 | J191: 49 | K191: 67 | L191: 43 | M191: 858 | N191: 6649 | O191: 548 | P191: 548 | S191: 49 | T191: 38 | U191: 23 | V191: 5 | W191: 77 | X191: 140 | Y191: 0.8717948718 | Z191: 0.07808857809 | AA191: 0.05011655012 | AB191: 1519.434629
A192: 2020-03-26T17:00:00 | B192: 4 | C192: P.A. Bolzano | D192: 223 | E192: 43 | F192: 266 | G192: 525 | H192: 791 | J192: 43 | K192: 67 | L192: 48 | M192: 906 | N192: 7744 | O192: 548 | P192: 548 | S192: 43 | T192: -6 | V192: 5 | W192: 48 | X192: =IF(N192-N191=0,"",N192-N191) -> 1095 | Y192: 0.8730684327 | Z192: 0.07395143488 | AA192: 0.05298013245 | AB192: 1696.113074
A193: 2020-03-27T17:00:00 | B193: 4 | C193: P.A. Bolzano | D193: 249 | E193: 45 | F193: 294 | G193: 539 | H193: 833 | I193: 42 | J193: 97 | K193: 110 | L193: 60 | M193: 1003 | N193: 8520 | O193: =IF(P193="x2",M193,O192) -> 548 | P193: =IF(M193>O192*2,"x2",O192) -> 548 | Q193: =IF(P193="x2",M193,"") ->  | S193: =IF(H193-H192=0,"",H193-H192) -> 42 | T193: =IF(J193-J192=0,"",J193-J192) -> 54 | U193: 43 | V193: 12 | W193: 97 | X193: 776 | Y193: 0.8305084746 | Z193: 0.109670987 | AA193: 0.05982053838 | AB193: 2120.141343
A194: 2020-03-28T17:00:00 | B194: 4 | C194: P.A. Bolzano | D194: 225 | E194: 51 | F194: 276 | G194: 653 | H194: 929 | I194: 96 | J194: 106 | K194: 116 | L194: 64 | M194: 1109 | N194: 9168 | O194: 1109 | P194: x2 | Q194: 1109 | S194: 96 | T194: 9 | U194: 6 | V194: 4 | W194: 106 | X194: 648 | Y194: 0.8376916141 | Z194: 0.1045987376 | AA194: 0.05770964833 | AB194: 2261.484099
A195: 2020-03-29T17:00:00 | B195: 4 | C195: P.A. Bolzano | D195: 234 | E195: 56 | F195: 290 | G195: 744 | H195: 1034 | I195: 105 | J195: 105 | K195: 116 | L195: 64 | M195: 1214 | N195: 10137 | O195: 1109 | P195: 1109 | S195: 105 | T195: -1 | W195: 105 | X195: 969 | Y195: 0.8517298188 | Z195: 0.09555189456 | AA195: 0.05271828666 | AB195: 2261.484099
A196: 2020-03-30T17:00:00 | B196: 4 | C196: P.A. Bolzano | D196: 231 | E196: 62 | F196: 293 | G196: 805 | H196: 1098 | I196: 64 | J196: 111 | K196: 153 | L196: 74 | M196: 1325 | N196: 10640 | O196: 1109 | P196: 1109 | S196: 64 | T196: 6 | U196: 37 | V196: 10 | W196: 111 | X196: 503 | Y196: 0.8286792453 | Z196: 0.1154716981 | AA196: 0.0558490566 | AB196: 2614.840989
A197: 2020-03-31T17:00:00 | B197: 4 | C197: P.A. Bolzano | D197: 249 | E197: 62 | F197: 311 | G197: 831 | H197: 1142 | I197: 44 | J197: 46 | K197: 153 | L197: 76 | M197: 1371 | N197: 11275 | O197: 1109 | P197: 1109 | S197: 44 | T197: -65 | V197: 2 | W197: 46 | X197: 635 | Y197: 0.832968636 | Z197: 0.1115973742 | AA197: 0.05543398979 | AB197: 2685.512367
A198: 2020-04-01T17:00:00 | B198: 4 | C198: P.A. Bolzano | D198: 269 | E198: 57 | F198: 326 | G198: 786 | H198: 1112 | I198: -30 | J198: 47 | K198: 190 | L198: 116 | M198: 1418 | N198: 11951 | O198: 1109 | P198: 1109 | S198: -30 | T198: 1 | U198: 37 | V198: 40 | W198: 47 | X198: =IF(N198-N197=0,"",N198-N197) -> 676 | Y198: =IF(M198=0,0,H198/M198) -> 0.784203103 | Z198: =IF(M198=0,0,K198/M198) -> 0.1339915374 | AA198: =IF(M198=0,0,L198/M198) -> 0.08180535966 | AB198: 4098.939929
A199: 2020-04-02T17:00:00 | B199: 4 | C199: P.A. Bolzano | D199: 279 | E199: 60 | F199: 339 | G199: 821 | H199: 1160 | I199: 48 | J199: 61 | K199: 190 | L199: 129 | M199: 1479 | N199: 12677 | O199: =IF(P199="x2",M199,O198) -> 1109 | P199: =IF(M199>O198*2,"x2",O198) -> 1109 | Q199: =IF(P199="x2",M199,"") ->  | S199: =IF(H199-H198=0,"",H199-H198) -> 48 | T199: =IF(J199-J198=0,"",J199-J198) -> 14 | U199: =IF(K199-K198=0,"",K199-K198) ->  | V199: =IF(L199-L198=0,"",L199-L198) -> 13 | W199: =IF(M199-M198=0,"",M199-M198) -> 61 | X199: 726 | Y199: 0.7843137255 | Z199: 0.1284651792 | AA199: 0.08722109533 | AB199: 4558.303887
A200: 2020-04-03T17:00:00 | B200: 4 | C200: P.A. Bolzano | D200: 291 | E200: 60 | F200: 351 | G200: 858 | H200: 1209 | I200: 49 | J200: 80 | K200: 211 | L200: 139 | M200: 1559 | N200: 13976 | O200: =IF(P200="x2",M200,O199) -> 1109 | P200: =IF(M200>O199*2,"x2",O199) -> 1109 | Q200: =IF(P200="x2",M200,"") ->  | S200: =IF(H200-H199=0,"",H200-H199) -> 49 | T200: =IF(J200-J199=0,"",J200-J199) -> 19 | U200: =IF(K200-K199=0,"",K200-K199) -> 21 | V200: =IF(L200-L199=0,"",L200-L199) -> 10 | W200: =IF(M200-M199=0,"",M200-M199) -> 80 | X200: 1299 | Y200: 0.7754971135 | Z200: 0.1353431687 | AA200: 0.08915971777 | AB200: =L200*100/B$1138 -> 4911.660777
A201: 2020-04-04T17:00:00 | B201: 4 | C201: P.A. Bolzano | D201: 291 | E201: 61 | F201: 352 | G201: 849 | H201: 1201 | I201: -8 | J201: 33 | K201: 245 | L201: 146 | M201: 1592 | N201: 15045 | O201: =IF(P201="x2",M201,O200) -> 1109 | P201: =IF(M201>O200*2,"x2",O200) -> 1109 | Q201: =IF(P201="x2",M201,"") ->  | S201: =IF(H201-H200=0,"",H201-H200) -> -8 | T201: =IF(J201-J200=0,"",J201-J200) -> -47 | U201: =IF(K201-K200=0,"",K201-K200) -> 34 | V201: =IF(L201-L200=0,"",L201-L200) -> 7 | W201: =IF(M201-M200=0,"",M201-M200) -> 33 | X201: 1069 | Y201: 0.7543969849 | Z201: 0.1538944724 | AA201: 0.09170854271 | AB201: =L201*100/B$1138 -> 5159.010601
A202: 2020-04-05T17:00:00 | B202: 4 | C202: P.A. Bolzano | D202: 239 | E202: 53 | F202: 292 | G202: 934 | H202: 1226 | I202: 25 | J202: 52 | K202: 260 | L202: 158 | M202: 1644 | N202: 15723 | O202: =IF(P202="x2",M202,O201) -> 1109 | P202: =IF(M202>O201*2,"x2",O201) -> 1109 | Q202: =IF(P202="x2",M202,"") ->  | S202: =IF(H202-H201=0,"",H202-H201) -> 25 | T202: =IF(J202-J201=0,"",J202-J201) -> 19 | U202: =IF(K202-K201=0,"",K202-K201) -> 15 | V202: =IF(L202-L201=0,"",L202-L201) -> 12 | W202: =IF(M202-M201=0,"",M202-M201) -> 52 | X202: 678 | Y202: 0.7457420925 | Z202: 0.1581508516 | AA202: 0.09610705596 | AB202: =L202*100/B$1138 -> 5583.038869
A203: 2020-04-06T17:00:00 | B203: 4 | C203: P.A. Bolzano | D203: 245 | E203: 52 | F203: 297 | G203: 963 | H203: 1260 | I203: 34 | J203: 78 | K203: 298 | L203: 164 | M203: 1722 | N203: 16825 | O203: =IF(P203="x2",M203,O202) -> 1109 | P203: =IF(M203>O202*2,"x2",O202) -> 1109 | Q203: =IF(P203="x2",M203,"") ->  | S203: =IF(H203-H202=0,"",H203-H202) -> 34 | T203: =IF(J203-J202=0,"",J203-J202) -> 26 | U203: =IF(K203-K202=0,"",K203-K202) -> 38 | V203: =IF(L203-L202=0,"",L203-L202) -> 6 | W203: =IF(M203-M202=0,"",M203-M202) -> 78 | X203: 1102 | Y203: 0.7317073171 | Z203: 0.1730545877 | AA203: 0.09523809524 | AB203: =L203*100/B$1138 -> 5795.053004
A204: 2020-04-07T17:00:00 | B204: 4 | C204: P.A. Bolzano | D204: 325 | E204: 64 | F204: 389 | G204: 912 | H204: 1301 | I204: 41 | J204: 89 | K204: 336 | L204: 174 | M204: 1811 | N204: 17761 | O204: =IF(P204="x2",M204,O203) -> 1109 | P204: =IF(M204>O203*2,"x2",O203) -> 1109 | Q204: =IF(P204="x2",M204,"") ->  | S204: =IF(H204-H203=0,"",H204-H203) -> 41 | T204: =IF(J204-J203=0,"",J204-J203) -> 11 | U204: =IF(K204-K203=0,"",K204-K203) -> 38 | V204: =IF(L204-L203=0,"",L204-L203) -> 10 | W204: =IF(M204-M203=0,"",M204-M203) -> 89 | X204: =IF(N204-N203=0,"",N204-N203) -> 936 | Y204: =IF(M204=0,0,H204/M204) -> 0.7183876311 | Z204: =IF(M204=0,0,K204/M204) -> 0.1855328548 | AA204: =IF(M204=0,0,L204/M204) -> 0.09607951408 | AB204: =L204*100/B$1138 -> 6148.409894
A205: 2020-04-08T17:00:00 | B205: 4 | C205: P.A. Bolzano | D205: 268 | E205: 65 | F205: 333 | G205: 948 | H205: 1281 | I205: -20 | J205: 24 | K205: 371 | L205: 183 | M205: 1835 | N205: 18865 | O205: =IF(P205="x2",M205,O204) -> 1109 | P205: =IF(M205>O204*2,"x2",O204) -> 1109 | Q205: =IF(P205="x2",M205,"") ->  | S205: =IF(H205-H204=0,"",H205-H204) -> -20 | T205: =IF(J205-J204=0,"",J205-J204) -> -65 | U205: =IF(K205-K204=0,"",K205-K204) -> 35 | V205: =IF(L205-L204=0,"",L205-L204) -> 9 | W205: =IF(M205-M204=0,"",M205-M204) -> 24 | X205: =IF(N205-N204=0,"",N205-N204) -> 1104 | Y205: =IF(M205=0,0,H205/M205) -> 0.6980926431 | Z205: =IF(M205=0,0,K205/M205) -> 0.2021798365 | AA205: =IF(M205=0,0,L205/M205) -> 0.09972752044 | AB205: =L205*100/B$1138 -> 6466.431095
A206: =A205+1 -> 2020-04-09T17:00:00 | P206: Media x2 | Q206: =COUNT(M161:M205)/COUNT(Q161:Q205) -> 5
A207: =A206+1 -> 2020-04-10T17:00:00
A208: =A207+1 -> 2020-04-11T17:00:00
E209: =E205/$M205 -> 0.03542234332 | H209: =H205/$M205 -> 0.6980926431 | K209: =K205/$M205 -> 0.2021798365 | L209: =L205/$M205 -> 0.09972752044 | N209: =N205/$M205 -> 10.28065395
... 925 more rows
